Workbook

Sheet Fornecedores
A1: Cadastro de Fornecedores
A2: Nome | B2: Endereço | C2: Nº | D2: Cidade | E2: Estado | F2: CNPJ
A3: COPASUL COOPERATIVA AGRÍCOLA | B3: Av. Deodato leonardo da Silva | C3: 1076 | D3: Deodapolis | E3: MS | F3: 03.902.129/0004-26
A4: PARCERIA AGRICOLA E PECUARIA LTDA | B4: Rua Hayel Bon Faker | C4: 950 | D4: Dourados | E4: MS | F4: 8013743000108
A5: BIO ATUMUS DOURADOS COMERCIO | B5: R JOAO ROSA GOES | C5: 73 | D5: DOURADOS | E5: MS | F5: 47896647000107

Sheet Nota_Fiscal
B1: CADASTRO DE NOTA FISCAL
B3: NOTA FISCAL | C3: DATA DA COMPRA | D3: FORNECEDOR | E3: INSUMO | F3: UN | G3: PRODUTO | H3: VALOR UNITÁRIO | I3: QTD | J3: VALOR TOTAL | L3: TIPO
B4: 6126 | C4: 2023-08-03 | D4: COPASUL COOPERATIVA AGRÍCOLA | E4: Defensivo Galão | F4: =IFERROR(VLOOKUP(E4,Insumos!A:C,2,FALSE),"") -> Lt | G4: OFF ROAD | H4: 28.6392 | I4: 300 | J4: =IFERROR(H4*I4,"") -> 8591.76 | L4: herbicida
B5: 6126 | C5: 2023-08-03 | D5: COPASUL COOPERATIVA AGRÍCOLA | E5: Defensivo Galão | F5: =IFERROR(VLOOKUP(E5,Insumos!A:C,2,FALSE),"") -> Lt | G5: POQUER | H5: 34.5464 | I5: 240 | J5: =IFERROR(H5*I5,"") -> 8291.136 | L5: herbicida
B6: 6126 | C6: 2023-08-03 | D6: COPASUL COOPERATIVA AGRÍCOLA | E6: Defensivo Galão | F6: =IFERROR(VLOOKUP(E6,Insumos!A:C,2,FALSE),"") -> Lt | G6: IHARA GOLD | H6: 24.7732 | I6: 180 | J6: 4459.176 | L6: óleo
B7: 6126 | C7: 2023-08-04 | D7: COPASUL COOPERATIVA AGRÍCOLA | E7: Defensivo Galão | F7: =IFERROR(VLOOKUP(E7,Insumos!A:C,2,FALSE),"") -> Lt | G7: TRICLON | H7: 64.1134 | I7: 240 | J7: 15387.216 | L7: herbicida
B8: 6123 | C8: 2023-08-03 | D8: COPASUL COOPERATIVA AGRÍCOLA | E8: Defensivo Galão | F8: =IFERROR(VLOOKUP(E8,Insumos!A:C,2,FALSE),"") -> Lt | G8: OFF ROAD | H8: 28.6392 | I8: 300 | J8: 8591.76 | L8: herbicida
B9: 6123 | C9: 2023-08-03 | D9: COPASUL COOPERATIVA AGRÍCOLA | E9: Defensivo Galão | F9: =IFERROR(VLOOKUP(E9,Insumos!A:C,2,FALSE),"") -> Lt | G9: POQUER | H9: 34.5464 | I9: 240 | J9: 8291.136 | L9: herbicida
B10: 6123 | C10: 2023-08-03 | D10: COPASUL COOPERATIVA AGRÍCOLA | E10: Defensivo Galão | F10: =IFERROR(VLOOKUP(E10,Insumos!A:C,2,FALSE),"") -> Lt | G10: IHARA GOLD | H10: 24.7732 | I10: 180 | J10: 4459.176 | L10: óleo
B11: 6123 | C11: 2023-08-03 | D11: COPASUL COOPERATIVA AGRÍCOLA | E11: Defensivo Galão | F11: =IFERROR(VLOOKUP(E11,Insumos!A:C,2,FALSE),"") -> Lt | G11: TRICLON | H11: 64.1134 | I11: 220 | J11: 14104.948 | L11: herbicida
B12: 1856 | C12: 2023-06-07 | D12: COPASUL COOPERATIVA AGRÍCOLA | E12: Defensivo Granulado | F12: =IFERROR(VLOOKUP(E12,Insumos!A:C,2,FALSE),"") -> Kg | G12: STRINGER WG | H12: 29.17 | I12: 180 | J12: 5250.6 | L12: herbicida
B13: 1854 | C13: 2023-06-07 | D13: COPASUL COOPERATIVA AGRÍCOLA | E13: Defensivo Granulado | F13: =IFERROR(VLOOKUP(E13,Insumos!A:C,2,FALSE),"") -> Kg | G13: STRINGER WG | H13: 29.17 | I13: 640 | J13: 18668.8 | L13: herbicida
B14: 1853 | C14: 2023-06-07 | D14: COPASUL COOPERATIVA AGRÍCOLA | E14: Defensivo Granulado | F14: =IFERROR(VLOOKUP(E14,Insumos!A:C,2,FALSE),"") -> Kg | G14: STRINGER WG | H14: 29.17 | I14: 1180 | J14: 34420.6 | L14: herbicida
B15: 33607 | C15: 2023-08-28 | D15: PARCERIA AGRICOLA E PECUARIA LTDA | E15: Defensivo Galão | F15: =IFERROR(VLOOKUP(E15,Insumos!A:C,2,FALSE),"") -> Lt | G15: CADDET BB | H15: 15 | I15: 120 | J15: 1800 | L15: óleo
B16: 33582 | C16: 2023-08-24 | D16: PARCERIA AGRICOLA E PECUARIA LTDA | E16: Defensivo Galão | F16: =IFERROR(VLOOKUP(E16,Insumos!A:C,2,FALSE),"") -> Lt | G16: SAPEK MAX 880 | H16: 113 | I16: 175 | J16: 19775 | L16: herbicida
B17: 33582 | C17: 2023-08-24 | D17: PARCERIA AGRICOLA E PECUARIA LTDA | E17: Defensivo Galão | F17: =IFERROR(VLOOKUP(E17,Insumos!A:C,2,FALSE),"") -> Lt | G17: CLETODIM CCAB EC | H17: 28 | I17: 360 | J17: 10080 | L17: herbicida
B18: 947 | C18: 2023-08-28 | D18: BIO ATUMUS DOURADOS COMERCIO | E18: Defensivo Galão | F18: =IFERROR(VLOOKUP(E18,Insumos!A:C,2,FALSE),"") -> Lt | G18: ATUMUS TANDER | H18: 90 | I18: 100 | J18: 9000 | L18: Adjuvante
F19: =IFERROR(VLOOKUP(E19,Insumos!A:C,2,FALSE),"") ->  | J19: 0
F20: =IFERROR(VLOOKUP(E20,Insumos!A:C,2,FALSE),"") ->  | J20: 0
F21: =IFERROR(VLOOKUP(E21,Insumos!A:C,2,FALSE),"") ->  | J21: 0
F22: =IFERROR(VLOOKUP(E22,Insumos!A:C,2,FALSE),"") ->  | J22: 0
F23: =IFERROR(VLOOKUP(E23,Insumos!A:C,2,FALSE),"") ->  | J23: 0
F24: =IFERROR(VLOOKUP(E24,Insumos!A:C,2,FALSE),"") ->  | J24: 0
F25: =IFERROR(VLOOKUP(E25,Insumos!A:C,2,FALSE),"") ->  | J25: 0
F26: =IFERROR(VLOOKUP(E26,Insumos!A:C,2,FALSE),"") ->  | J26: 0
F27: =IFERROR(VLOOKUP(E27,Insumos!A:C,2,FALSE),"") ->  | J27: 0
F28: =IFERROR(VLOOKUP(E28,Insumos!A:C,2,FALSE),"") ->  | J28: 0
F29: =IFERROR(VLOOKUP(E29,Insumos!A:C,2,FALSE),"") ->  | J29: 0
F30: =IFERROR(VLOOKUP(E30,Insumos!A:C,2,FALSE),"") ->  | J30: 0
F31: =IFERROR(VLOOKUP(E31,Insumos!A:C,2,FALSE),"") ->  | J31: 0
F32: =IFERROR(VLOOKUP(E32,Insumos!A:C,2,FALSE),"") ->  | J32: 0
F33: =IFERROR(VLOOKUP(E33,Insumos!A:C,2,FALSE),"") ->  | J33: 0
F34: =IFERROR(VLOOKUP(E34,Insumos!A:C,2,FALSE),"") ->  | J34: 0
F35: =IFERROR(VLOOKUP(E35,Insumos!A:C,2,FALSE),"") ->  | J35: 0
F36: =IFERROR(VLOOKUP(E36,Insumos!A:C,2,FALSE),"") ->  | J36: 0
F37: =IFERROR(VLOOKUP(E37,Insumos!A:C,2,FALSE),"") ->  | J37: 0
F38: =IFERROR(VLOOKUP(E38,Insumos!A:C,2,FALSE),"") ->  | J38: 0
F39: =IFERROR(VLOOKUP(E39,Insumos!A:C,2,FALSE),"") ->  | J39: 0
F40: =IFERROR(VLOOKUP(E40,Insumos!A:C,2,FALSE),"") ->  | J40: 0
F41: =IFERROR(VLOOKUP(E41,Insumos!A:C,2,FALSE),"") ->  | J41: 0
F42: =IFERROR(VLOOKUP(E42,Insumos!A:C,2,FALSE),"") ->  | J42: 0
F43: =IFERROR(VLOOKUP(E43,Insumos!A:C,2,FALSE),"") ->  | J43: 0
F44: =IFERROR(VLOOKUP(E44,Insumos!A:C,2,FALSE),"") ->  | J44: 0
F45: =IFERROR(VLOOKUP(E45,Insumos!A:C,2,FALSE),"") ->  | J45: 0
F46: =IFERROR(VLOOKUP(E46,Insumos!A:C,2,FALSE),"") ->  | J46: 0
F47: =IFERROR(VLOOKUP(E47,Insumos!A:C,2,FALSE),"") ->  | J47: 0
F48: =IFERROR(VLOOKUP(E48,Insumos!A:C,2,FALSE),"") ->  | J48: 0
F49: =IFERROR(VLOOKUP(E49,Insumos!A:C,2,FALSE),"") ->  | J49: 0
F50: =IFERROR(VLOOKUP(E50,Insumos!A:C,2,FALSE),"") ->  | J50: 0
F51: =IFERROR(VLOOKUP(E51,Insumos!A:C,2,FALSE),"") ->  | J51: 0
F52: =IFERROR(VLOOKUP(E52,Insumos!A:C,2,FALSE),"") ->  | J52: 0
F53: =IFERROR(VLOOKUP(E53,Insumos!A:C,2,FALSE),"") ->  | J53: 0
F54: =IFERROR(VLOOKUP(E54,Insumos!A:C,2,FALSE),"") ->  | J54: 0
F55: =IFERROR(VLOOKUP(E55,Insumos!A:C,2,FALSE),"") ->  | J55: 0
F56: =IFERROR(VLOOKUP(E56,Insumos!A:C,2,FALSE),"") ->  | J56: 0
F57: =IFERROR(VLOOKUP(E57,Insumos!A:C,2,FALSE),"") ->  | J57: 0
F58: =IFERROR(VLOOKUP(E58,Insumos!A:C,2,FALSE),"") ->  | J58: 0
F59: =IFERROR(VLOOKUP(E59,Insumos!A:C,2,FALSE),"") ->  | J59: 0
F60: =IFERROR(VLOOKUP(E60,Insumos!A:C,2,FALSE),"") ->  | J60: 0
F61: =IFERROR(VLOOKUP(E61,Insumos!A:C,2,FALSE),"") ->  | J61: 0
F62: =IFERROR(VLOOKUP(E62,Insumos!A:C,2,FALSE),"") ->  | J62: 0
F63: =IFERROR(VLOOKUP(E63,Insumos!A:C,2,FALSE),"") ->  | J63: 0
F64: =IFERROR(VLOOKUP(E64,Insumos!A:C,2,FALSE),"") ->  | J64: 0
F65: =IFERROR(VLOOKUP(E65,Insumos!A:C,2,FALSE),"") ->  | J65: 0
F66: =IFERROR(VLOOKUP(E66,Insumos!A:C,2,FALSE),"") ->  | J66: 0
F67: =IFERROR(VLOOKUP(E67,Insumos!A:C,2,FALSE),"") ->  | J67: 0
F68: =IFERROR(VLOOKUP(E68,Insumos!A:C,2,FALSE),"") ->  | J68: 0
F69: =IFERROR(VLOOKUP(E69,Insumos!A:C,2,FALSE),"") ->  | J69: =IFERROR(H69*I69,"") -> 0
F70: =IFERROR(VLOOKUP(E70,Insumos!A:C,2,FALSE),"") ->  | J70: 0
F71: =IFERROR(VLOOKUP(E71,Insumos!A:C,2,FALSE),"") ->  | J71: 0
F72: =IFERROR(VLOOKUP(E72,Insumos!A:C,2,FALSE),"") ->  | J72: 0
F73: =IFERROR(VLOOKUP(E73,Insumos!A:C,2,FALSE),"") ->  | J73: 0
F74: =IFERROR(VLOOKUP(E74,Insumos!A:C,2,FALSE),"") ->  | J74: 0
F75: =IFERROR(VLOOKUP(E75,Insumos!A:C,2,FALSE),"") ->  | J75: 0
F76: =IFERROR(VLOOKUP(E76,Insumos!A:C,2,FALSE),"") ->  | J76: 0
F77: =IFERROR(VLOOKUP(E77,Insumos!A:C,2,FALSE),"") ->  | J77: 0
F78: =IFERROR(VLOOKUP(E78,Insumos!A:C,2,FALSE),"") ->  | J78: 0
F79: =IFERROR(VLOOKUP(E79,Insumos!A:C,2,FALSE),"") ->  | J79: 0
F80: =IFERROR(VLOOKUP(E80,Insumos!A:C,2,FALSE),"") ->  | J80: 0
F81: =IFERROR(VLOOKUP(E81,Insumos!A:C,2,FALSE),"") ->  | J81: 0
F82: =IFERROR(VLOOKUP(E82,Insumos!A:C,2,FALSE),"") ->  | J82: 0
F83: =IFERROR(VLOOKUP(E83,Insumos!A:C,2,FALSE),"") ->  | J83: 0
F84: =IFERROR(VLOOKUP(E84,Insumos!A:C,2,FALSE),"") ->  | J84: 0
F85: =IFERROR(VLOOKUP(E85,Insumos!A:C,2,FALSE),"") ->  | J85: 0
F86: =IFERROR(VLOOKUP(E86,Insumos!A:C,2,FALSE),"") ->  | J86: 0
F87: =IFERROR(VLOOKUP(E87,Insumos!A:C,2,FALSE),"") ->  | J87: 0
F88: =IFERROR(VLOOKUP(E88,Insumos!A:C,2,FALSE),"") ->  | J88: 0
F89: =IFERROR(VLOOKUP(E89,Insumos!A:C,2,FALSE),"") ->  | J89: 0
F90: =IFERROR(VLOOKUP(E90,Insumos!A:C,2,FALSE),"") ->  | J90: 0
F91: =IFERROR(VLOOKUP(E91,Insumos!A:C,2,FALSE),"") ->  | J91: 0
F92: =IFERROR(VLOOKUP(E92,Insumos!A:C,2,FALSE),"") ->  | J92: 0
F93: =IFERROR(VLOOKUP(E93,Insumos!A:C,2,FALSE),"") ->  | J93: 0
F94: =IFERROR(VLOOKUP(E94,Insumos!A:C,2,FALSE),"") ->  | J94: 0
F95: =IFERROR(VLOOKUP(E95,Insumos!A:C,2,FALSE),"") ->  | J95: 0
F96: =IFERROR(VLOOKUP(E96,Insumos!A:C,2,FALSE),"") ->  | J96: 0
F97: =IFERROR(VLOOKUP(E97,Insumos!A:C,2,FALSE),"") ->  | J97: 0
F98: =IFERROR(VLOOKUP(E98,Insumos!A:C,2,FALSE),"") ->  | J98: 0
F99: =IFERROR(VLOOKUP(E99,Insumos!A:C,2,FALSE),"") ->  | J99: 0
F100: =IFERROR(VLOOKUP(E100,Insumos!A:C,2,FALSE),"") ->  | J100: 0
F101: =IFERROR(VLOOKUP(E101,Insumos!A:C,2,FALSE),"") ->  | J101: 0
F102: =IFERROR(VLOOKUP(E102,Insumos!A:C,2,FALSE),"") ->  | J102: 0
F103: =IFERROR(VLOOKUP(E103,Insumos!A:C,2,FALSE),"") ->  | J103: 0
F104: =IFERROR(VLOOKUP(E104,Insumos!A:C,2,FALSE),"") ->  | J104: 0
F105: =IFERROR(VLOOKUP(E105,Insumos!A:C,2,FALSE),"") ->  | J105: 0
F106: =IFERROR(VLOOKUP(E106,Insumos!A:C,2,FALSE),"") ->  | J106: 0
F107: =IFERROR(VLOOKUP(E107,Insumos!A:C,2,FALSE),"") ->  | J107: 0
F108: =IFERROR(VLOOKUP(E108,Insumos!A:C,2,FALSE),"") ->  | J108: 0
F109: =IFERROR(VLOOKUP(E109,Insumos!A:C,2,FALSE),"") ->  | J109: 0
F110: =IFERROR(VLOOKUP(E110,Insumos!A:C,2,FALSE),"") ->  | J110: 0
F111: =IFERROR(VLOOKUP(E111,Insumos!A:C,2,FALSE),"") ->  | J111: 0
F112: =IFERROR(VLOOKUP(E112,Insumos!A:C,2,FALSE),"") ->  | J112: 0
F113: =IFERROR(VLOOKUP(E113,Insumos!A:C,2,FALSE),"") ->  | J113: 0
F114: =IFERROR(VLOOKUP(E114,Insumos!A:C,2,FALSE),"") ->  | J114: 0
F115: =IFERROR(VLOOKUP(E115,Insumos!A:C,2,FALSE),"") ->  | J115: 0
F116: =IFERROR(VLOOKUP(E116,Insumos!A:C,2,FALSE),"") ->  | J116: 0
F117: =IFERROR(VLOOKUP(E117,Insumos!A:C,2,FALSE),"") ->  | J117: 0
F118: =IFERROR(VLOOKUP(E118,Insumos!A:C,2,FALSE),"") ->  | J118: 0
F119: =IFERROR(VLOOKUP(E119,Insumos!A:C,2,FALSE),"") ->  | J119: 0
F120: =IFERROR(VLOOKUP(E120,Insumos!A:C,2,FALSE),"") ->  | J120: 0
F121: =IFERROR(VLOOKUP(E121,Insumos!A:C,2,FALSE),"") ->  | J121: 0
F122: =IFERROR(VLOOKUP(E122,Insumos!A:C,2,FALSE),"") ->  | J122: 0
F123: =IFERROR(VLOOKUP(E123,Insumos!A:C,2,FALSE),"") ->  | J123: 0
F124: =IFERROR(VLOOKUP(E124,Insumos!A:C,2,FALSE),"") ->  | J124: 0
F125: =IFERROR(VLOOKUP(E125,Insumos!A:C,2,FALSE),"") ->  | J125: 0
F126: =IFERROR(VLOOKUP(E126,Insumos!A:C,2,FALSE),"") ->  | J126: 0
F127: =IFERROR(VLOOKUP(E127,Insumos!A:C,2,FALSE),"") ->  | J127: 0
F128: =IFERROR(VLOOKUP(E128,Insumos!A:C,2,FALSE),"") ->  | J128: 0
F129: =IFERROR(VLOOKUP(E129,Insumos!A:C,2,FALSE),"") ->  | J129: 0
F130: =IFERROR(VLOOKUP(E130,Insumos!A:C,2,FALSE),"") ->  | J130: 0
F131: =IFERROR(VLOOKUP(E131,Insumos!A:C,2,FALSE),"") ->  | J131: 0
F132: =IFERROR(VLOOKUP(E132,Insumos!A:C,2,FALSE),"") ->  | J132: 0
F133: =IFERROR(VLOOKUP(E133,Insumos!A:C,2,FALSE),"") ->  | J133: =IFERROR(H133*I133,"") -> 0
F134: =IFERROR(VLOOKUP(E134,Insumos!A:C,2,FALSE),"") ->  | J134: 0
F135: =IFERROR(VLOOKUP(E135,Insumos!A:C,2,FALSE),"") ->  | J135: 0
F136: =IFERROR(VLOOKUP(E136,Insumos!A:C,2,FALSE),"") ->  | J136: 0
F137: =IFERROR(VLOOKUP(E137,Insumos!A:C,2,FALSE),"") ->  | J137: 0
F138: =IFERROR(VLOOKUP(E138,Insumos!A:C,2,FALSE),"") ->  | J138: 0
F139: =IFERROR(VLOOKUP(E139,Insumos!A:C,2,FALSE),"") ->  | J139: 0
F140: =IFERROR(VLOOKUP(E140,Insumos!A:C,2,FALSE),"") ->  | J140: 0
F141: =IFERROR(VLOOKUP(E141,Insumos!A:C,2,FALSE),"") ->  | J141: 0
F142: =IFERROR(VLOOKUP(E142,Insumos!A:C,2,FALSE),"") ->  | J142: 0
F143: =IFERROR(VLOOKUP(E143,Insumos!A:C,2,FALSE),"") ->  | J143: 0
F144: =IFERROR(VLOOKUP(E144,Insumos!A:C,2,FALSE),"") ->  | J144: 0
F145: =IFERROR(VLOOKUP(E145,Insumos!A:C,2,FALSE),"") ->  | J145: 0
F146: =IFERROR(VLOOKUP(E146,Insumos!A:C,2,FALSE),"") ->  | J146: 0
F147: =IFERROR(VLOOKUP(E147,Insumos!A:C,2,FALSE),"") ->  | J147: 0
F148: =IFERROR(VLOOKUP(E148,Insumos!A:C,2,FALSE),"") ->  | J148: 0
F149: =IFERROR(VLOOKUP(E149,Insumos!A:C,2,FALSE),"") ->  | J149: 0
F150: =IFERROR(VLOOKUP(E150,Insumos!A:C,2,FALSE),"") ->  | J150: 0
F151: =IFERROR(VLOOKUP(E151,Insumos!A:C,2,FALSE),"") ->  | J151: 0
F152: =IFERROR(VLOOKUP(E152,Insumos!A:C,2,FALSE),"") ->  | J152: 0
F153: =IFERROR(VLOOKUP(E153,Insumos!A:C,2,FALSE),"") ->  | J153: 0
F154: =IFERROR(VLOOKUP(E154,Insumos!A:C,2,FALSE),"") ->  | J154: 0
F155: =IFERROR(VLOOKUP(E155,Insumos!A:C,2,FALSE),"") ->  | J155: 0
F156: =IFERROR(VLOOKUP(E156,Insumos!A:C,2,FALSE),"") ->  | J156: 0
F157: =IFERROR(VLOOKUP(E157,Insumos!A:C,2,FALSE),"") ->  | J157: 0
F158: =IFERROR(VLOOKUP(E158,Insumos!A:C,2,FALSE),"") ->  | J158: 0
F159: =IFERROR(VLOOKUP(E159,Insumos!A:C,2,FALSE),"") ->  | J159: 0
F160: =IFERROR(VLOOKUP(E160,Insumos!A:C,2,FALSE),"") ->  | J160: 0
F161: =IFERROR(VLOOKUP(E161,Insumos!A:C,2,FALSE),"") ->  | J161: 0
F162: =IFERROR(VLOOKUP(E162,Insumos!A:C,2,FALSE),"") ->  | J162: 0
F163: =IFERROR(VLOOKUP(E163,Insumos!A:C,2,FALSE),"") ->  | J163: 0
F164: =IFERROR(VLOOKUP(E164,Insumos!A:C,2,FALSE),"") ->  | J164: 0
F165: =IFERROR(VLOOKUP(E165,Insumos!A:C,2,FALSE),"") ->  | J165: 0
F166: =IFERROR(VLOOKUP(E166,Insumos!A:C,2,FALSE),"") ->  | J166: 0
F167: =IFERROR(VLOOKUP(E167,Insumos!A:C,2,FALSE),"") ->  | J167: 0
F168: =IFERROR(VLOOKUP(E168,Insumos!A:C,2,FALSE),"") ->  | J168: 0
F169: =IFERROR(VLOOKUP(E169,Insumos!A:C,2,FALSE),"") ->  | J169: 0
F170: =IFERROR(VLOOKUP(E170,Insumos!A:C,2,FALSE),"") ->  | J170: 0
F171: =IFERROR(VLOOKUP(E171,Insumos!A:C,2,FALSE),"") ->  | J171: 0
F172: =IFERROR(VLOOKUP(E172,Insumos!A:C,2,FALSE),"") ->  | J172: 0
F173: =IFERROR(VLOOKUP(E173,Insumos!A:C,2,FALSE),"") ->  | J173: 0
F174: =IFERROR(VLOOKUP(E174,Insumos!A:C,2,FALSE),"") ->  | J174: 0
F175: =IFERROR(VLOOKUP(E175,Insumos!A:C,2,FALSE),"") ->  | J175: 0
F176: =IFERROR(VLOOKUP(E176,Insumos!A:C,2,FALSE),"") ->  | J176: 0
F177: =IFERROR(VLOOKUP(E177,Insumos!A:C,2,FALSE),"") ->  | J177: 0
F178: =IFERROR(VLOOKUP(E178,Insumos!A:C,2,FALSE),"") ->  | J178: 0
F179: =IFERROR(VLOOKUP(E179,Insumos!A:C,2,FALSE),"") ->  | J179: 0
F180: =IFERROR(VLOOKUP(E180,Insumos!A:C,2,FALSE),"") ->  | J180: 0
F181: =IFERROR(VLOOKUP(E181,Insumos!A:C,2,FALSE),"") ->  | J181: 0
F182: =IFERROR(VLOOKUP(E182,Insumos!A:C,2,FALSE),"") ->  | J182: 0
F183: =IFERROR(VLOOKUP(E183,Insumos!A:C,2,FALSE),"") ->  | J183: 0
F184: =IFERROR(VLOOKUP(E184,Insumos!A:C,2,FALSE),"") ->  | J184: 0
F185: =IFERROR(VLOOKUP(E185,Insumos!A:C,2,FALSE),"") ->  | J185: 0
F186: =IFERROR(VLOOKUP(E186,Insumos!A:C,2,FALSE),"") ->  | J186: 0
F187: =IFERROR(VLOOKUP(E187,Insumos!A:C,2,FALSE),"") ->  | J187: 0
F188: =IFERROR(VLOOKUP(E188,Insumos!A:C,2,FALSE),"") ->  | J188: 0
F189: =IFERROR(VLOOKUP(E189,Insumos!A:C,2,FALSE),"") ->  | J189: 0
F190: =IFERROR(VLOOKUP(E190,Insumos!A:C,2,FALSE),"") ->  | J190: 0
F191: =IFERROR(VLOOKUP(E191,Insumos!A:C,2,FALSE),"") ->  | J191: 0
F192: =IFERROR(VLOOKUP(E192,Insumos!A:C,2,FALSE),"") ->  | J192: 0
F193: =IFERROR(VLOOKUP(E193,Insumos!A:C,2,FALSE),"") ->  | J193: 0
F194: =IFERROR(VLOOKUP(E194,Insumos!A:C,2,FALSE),"") ->  | J194: 0
F195: =IFERROR(VLOOKUP(E195,Insumos!A:C,2,FALSE),"") ->  | J195: 0
F196: =IFERROR(VLOOKUP(E196,Insumos!A:C,2,FALSE),"") ->  | J196: 0
F197: =IFERROR(VLOOKUP(E197,Insumos!A:C,2,FALSE),"") ->  | J197: =IFERROR(H197*I197,"") -> 0
F198: =IFERROR(VLOOKUP(E198,Insumos!A:C,2,FALSE),"") ->  | J198: 0
F199: =IFERROR(VLOOKUP(E199,Insumos!A:C,2,FALSE),"") ->  | J199: 0
F200: =IFERROR(VLOOKUP(E200,Insumos!A:C,2,FALSE),"") ->  | J200: 0
F201: =IFERROR(VLOOKUP(E201,Insumos!A:C,2,FALSE),"") ->  | J201: 0
... 2303 more rows

Sheet Relatório
B2: RELATÓRIO DE ENTRADAS E SAÍDAS POR INSUMOS
A4: INSUMO | B4: SAFRA 2023 | C4: TOTAL DE ENTRADAS (NOTA FISCAL) | E4: QUANTIDADE DE SAÍDAS | F4: SALDO ATUAL NO ESTOQUE
A5: herbicida | C5: =IFERROR(SUMIF(Nota_Fiscal!L4:L1174,A5,Nota_Fiscal!I4:I1174),"") -> 4075 | E5: =IFERROR(SUMIF(Saída!H:H,Relatório!$A$5,Saída!F:F),"") -> 1361 | F5: =C5-E5 -> 2714
B6: Lt | C6: =SUMIFS(Nota_Fiscal!$I$4:$I$1600,Nota_Fiscal!$F$4:$F$1600,Relatório!B6,Nota_Fiscal!$L$4:$L$1600,Relatório!$A$5) -> 2075 | E6: =SUMIFS(Saída!$F$4:$F$38,Saída!$C$4:$C$38,Relatório!B6,Saída!$H$4:$H$38,Relatório!$A$5) -> 786 | F6: =C6-E6 -> 1289
B7: Kg | C7: =SUMIFS(Nota_Fiscal!$I$4:$I$1600,Nota_Fiscal!$F$4:$F$1600,Relatório!B7,Nota_Fiscal!$L$4:$L$1600,Relatório!$A$5) -> 2000 | E7: =SUMIFS(Saída!$F$4:$F$38,Saída!$C$4:$C$38,Relatório!B7,Saída!$H$4:$H$38,Relatório!$A$5) -> 575 | F7: =C7-E7 -> 1425
B8: Entradas | D8: Saídas de Insumos
A9: Data | B9: Produto | C9: Entrada | D9: Data2 | E9: Produto2 | F9: Saída | G9: Talhão
A10: =IFERROR(INDEX(Nota_Fiscal!$C$4:$C$1600,SMALL(IF(Nota_Fiscal!L$4:L$1600=A$5,ROW(Nota_Fiscal!L$4:L$1600)-ROWS($A$1:$A$3)),ROW($A1))),"") -> 2023-08-03 | B10: =IFERROR(INDEX(Nota_Fiscal!G$4:G$1600,SMALL(IF(Nota_Fiscal!L$4:L$1600=A$5,ROW(Nota_Fiscal!L$4:L$1600)-ROWS($A$1:$A$3)),ROW($A1))),"") -> OFF ROAD | C10: =IFERROR(INDEX(Nota_Fiscal!I$4:I$1600,SMALL(IF(Nota_Fiscal!L$4:L$1600=A$5,ROW(Nota_Fiscal!L$4:L$1600)-ROWS($A$1:$A$3)),ROW($A1))),"") -> 300 | D10: =IFERROR(INDEX(Saída!$D$4:$D$38,SMALL(IF(Saída!$H$4:$H$38=A$5,ROW(Saída!$H$4:$H$38)-ROWS($A$1:$A$3)),ROW($A1))),"") -> 2023-08-04 | E10: =IFERROR(INDEX(Saída!$E$4:$E$38,SMALL(IF(Saída!$H$4:$H$38=A$5,ROW(Saída!$H$4:$H$38)-ROWS($A$1:$A$3)),ROW($A1))),"") -> STRINGER WG | F10: =IFERROR(INDEX(Saída!$F$4:$F$38,SMALL(IF(Saída!$H$4:$H$38=A$5,ROW(Saída!$H$4:$H$38)-ROWS($A$1:$A$3)),ROW($A1))),"") -> 220 | G10: =IFERROR(INDEX(Saída!$B$4:$B$38,SMALL(IF(Saída!$H$4:$H$38=A$5,ROW(Saída!$H$4:$H$38)-ROWS($A$1:$A$3)),ROW($A1))),"") -> 6
A11: =IFERROR(INDEX(Nota_Fiscal!$C$4:$C$1600,SMALL(IF(Nota_Fiscal!L$4:L$1600=A$5,ROW(Nota_Fiscal!L$4:L$1600)-ROWS($A$1:$A$3)),ROW($A2))),"") -> 2023-08-03 | B11: =IFERROR(INDEX(Nota_Fiscal!G$4:G$1600,SMALL(IF(Nota_Fiscal!L$4:L$1600=A$5,ROW(Nota_Fiscal!L$4:L$1600)-ROWS($A$1:$A$3)),ROW($A2))),"") -> POQUER | C11: =IFERROR(INDEX(Nota_Fiscal!I$4:I$1600,SMALL(IF(Nota_Fiscal!L$4:L$1600=A$5,ROW(Nota_Fiscal!L$4:L$1600)-ROWS($A$1:$A$3)),ROW($A2))),"") -> 240 | D11: =IFERROR(INDEX(Saída!$D$4:$D$38,SMALL(IF(Saída!$H$4:$H$38=A$5,ROW(Saída!$H$4:$H$38)-ROWS($A$1:$A$3)),ROW($A2))),"") -> 2023-08-04 | E11: =IFERROR(INDEX(Saída!$E$4:$E$38,SMALL(IF(Saída!$H$4:$H$38=A$5,ROW(Saída!$H$4:$H$38)-ROWS($A$1:$A$3)),ROW($A2))),"") -> TRICLON | F11: =IFERROR(INDEX(Saída!$F$4:$F$38,SMALL(IF(Saída!$H$4:$H$38=A$5,ROW(Saída!$H$4:$H$38)-ROWS($A$1:$A$3)),ROW($A2))),"") -> 165 | G11: =IFERROR(INDEX(Saída!$B$4:$B$38,SMALL(IF(Saída!$H$4:$H$38=A$5,ROW(Saída!$H$4:$H$38)-ROWS($A$1:$A$3)),ROW($A2))),"") -> 6
A12: =IFERROR(INDEX(Nota_Fiscal!$C$4:$C$1600,SMALL(IF(Nota_Fiscal!L$4:L$1600=A$5,ROW(Nota_Fiscal!L$4:L$1600)-ROWS($A$1:$A$3)),ROW($A3))),"") -> 2023-08-04 | B12: =IFERROR(INDEX(Nota_Fiscal!G$4:G$1600,SMALL(IF(Nota_Fiscal!L$4:L$1600=A$5,ROW(Nota_Fiscal!L$4:L$1600)-ROWS($A$1:$A$3)),ROW($A3))),"") -> TRICLON | C12: =IFERROR(INDEX(Nota_Fiscal!I$4:I$1600,SMALL(IF(Nota_Fiscal!L$4:L$1600=A$5,ROW(Nota_Fiscal!L$4:L$1600)-ROWS($A$1:$A$3)),ROW($A3))),"") -> 240 | D12: =IFERROR(INDEX(Saída!$D$4:$D$38,SMALL(IF(Saída!$H$4:$H$38=A$5,ROW(Saída!$H$4:$H$38)-ROWS($A$1:$A$3)),ROW($A3))),"") -> 2023-08-15 | E12: =IFERROR(INDEX(Saída!$E$4:$E$38,SMALL(IF(Saída!$H$4:$H$38=A$5,ROW(Saída!$H$4:$H$38)-ROWS($A$1:$A$3)),ROW($A3))),"") -> OFF ROAD | F12: =IFERROR(INDEX(Saída!$F$4:$F$38,SMALL(IF(Saída!$H$4:$H$38=A$5,ROW(Saída!$H$4:$H$38)-ROWS($A$1:$A$3)),ROW($A3))),"") -> 220 | G12: =IFERROR(INDEX(Saída!$B$4:$B$38,SMALL(IF(Saída!$H$4:$H$38=A$5,ROW(Saída!$H$4:$H$38)-ROWS($A$1:$A$3)),ROW($A3))),"") -> 6
A13: =IFERROR(INDEX(Nota_Fiscal!$C$4:$C$1600,SMALL(IF(Nota_Fiscal!L$4:L$1600=A$5,ROW(Nota_Fiscal!L$4:L$1600)-ROWS($A$1:$A$3)),ROW($A4))),"") -> 2023-08-03 | B13: =IFERROR(INDEX(Nota_Fiscal!G$4:G$1600,SMALL(IF(Nota_Fiscal!L$4:L$1600=A$5,ROW(Nota_Fiscal!L$4:L$1600)-ROWS($A$1:$A$3)),ROW($A4))),"") -> OFF ROAD | C13: =IFERROR(INDEX(Nota_Fiscal!I$4:I$1600,SMALL(IF(Nota_Fiscal!L$4:L$1600=A$5,ROW(Nota_Fiscal!L$4:L$1600)-ROWS($A$1:$A$3)),ROW($A4))),"") -> 300 | D13: =IFERROR(INDEX(Saída!$D$4:$D$38,SMALL(IF(Saída!$H$4:$H$38=A$5,ROW(Saída!$H$4:$H$38)-ROWS($A$1:$A$3)),ROW($A4))),"") -> 2023-08-23 | E13: =IFERROR(INDEX(Saída!$E$4:$E$38,SMALL(IF(Saída!$H$4:$H$38=A$5,ROW(Saída!$H$4:$H$38)-ROWS($A$1:$A$3)),ROW($A4))),"") -> STRINGER WG | F13: =IFERROR(INDEX(Saída!$F$4:$F$38,SMALL(IF(Saída!$H$4:$H$38=A$5,ROW(Saída!$H$4:$H$38)-ROWS($A$1:$A$3)),ROW($A4))),"") -> 120 | G13: =IFERROR(INDEX(Saída!$B$4:$B$38,SMALL(IF(Saída!$H$4:$H$38=A$5,ROW(Saída!$H$4:$H$38)-ROWS($A$1:$A$3)),ROW($A4))),"") -> 6
A14: =IFERROR(INDEX(Nota_Fiscal!$C$4:$C$1600,SMALL(IF(Nota_Fiscal!L$4:L$1600=A$5,ROW(Nota_Fiscal!L$4:L$1600)-ROWS($A$1:$A$3)),ROW($A5))),"") -> 2023-08-03 | B14: =IFERROR(INDEX(Nota_Fiscal!G$4:G$1600,SMALL(IF(Nota_Fiscal!L$4:L$1600=A$5,ROW(Nota_Fiscal!L$4:L$1600)-ROWS($A$1:$A$3)),ROW($A5))),"") -> POQUER | C14: =IFERROR(INDEX(Nota_Fiscal!I$4:I$1600,SMALL(IF(Nota_Fiscal!L$4:L$1600=A$5,ROW(Nota_Fiscal!L$4:L$1600)-ROWS($A$1:$A$3)),ROW($A5))),"") -> 240 | D14: =IFERROR(INDEX(Saída!$D$4:$D$38,SMALL(IF(Saída!$H$4:$H$38=A$5,ROW(Saída!$H$4:$H$38)-ROWS($A$1:$A$3)),ROW($A5))),"") -> 2023-08-23 | E14: =IFERROR(INDEX(Saída!$E$4:$E$38,SMALL(IF(Saída!$H$4:$H$38=A$5,ROW(Saída!$H$4:$H$38)-ROWS($A$1:$A$3)),ROW($A5))),"") -> TRICLON | F14: =IFERROR(INDEX(Saída!$F$4:$F$38,SMALL(IF(Saída!$H$4:$H$38=A$5,ROW(Saída!$H$4:$H$38)-ROWS($A$1:$A$3)),ROW($A5))),"") -> 90 | G14: =IFERROR(INDEX(Saída!$B$4:$B$38,SMALL(IF(Saída!$H$4:$H$38=A$5,ROW(Saída!$H$4:$H$38)-ROWS($A$1:$A$3)),ROW($A5))),"") -> 6
A15: =IFERROR(INDEX(Nota_Fiscal!$C$4:$C$1600,SMALL(IF(Nota_Fiscal!L$4:L$1600=A$5,ROW(Nota_Fiscal!L$4:L$1600)-ROWS($A$1:$A$3)),ROW($A6))),"") -> 2023-08-03 | B15: =IFERROR(INDEX(Nota_Fiscal!G$4:G$1600,SMALL(IF(Nota_Fiscal!L$4:L$1600=A$5,ROW(Nota_Fiscal!L$4:L$1600)-ROWS($A$1:$A$3)),ROW($A6))),"") -> TRICLON | C15: =IFERROR(INDEX(Nota_Fiscal!I$4:I$1600,SMALL(IF(Nota_Fiscal!L$4:L$1600=A$5,ROW(Nota_Fiscal!L$4:L$1600)-ROWS($A$1:$A$3)),ROW($A6))),"") -> 220 | D15: =IFERROR(INDEX(Saída!$D$4:$D$38,SMALL(IF(Saída!$H$4:$H$38=A$5,ROW(Saída!$H$4:$H$38)-ROWS($A$1:$A$3)),ROW($A6))),"") -> 2023-08-24 | E15: =IFERROR(INDEX(Saída!$E$4:$E$38,SMALL(IF(Saída!$H$4:$H$38=A$5,ROW(Saída!$H$4:$H$38)-ROWS($A$1:$A$3)),ROW($A6))),"") -> STRINGER WG | F15: =IFERROR(INDEX(Saída!$F$4:$F$38,SMALL(IF(Saída!$H$4:$H$38=A$5,ROW(Saída!$H$4:$H$38)-ROWS($A$1:$A$3)),ROW($A6))),"") -> 155 | G15: =IFERROR(INDEX(Saída!$B$4:$B$38,SMALL(IF(Saída!$H$4:$H$38=A$5,ROW(Saída!$H$4:$H$38)-ROWS($A$1:$A$3)),ROW($A6))),"") -> 1
A16: =IFERROR(INDEX(Nota_Fiscal!$C$4:$C$1600,SMALL(IF(Nota_Fiscal!L$4:L$1600=A$5,ROW(Nota_Fiscal!L$4:L$1600)-ROWS($A$1:$A$3)),ROW($A7))),"") -> 2023-06-07 | B16: =IFERROR(INDEX(Nota_Fiscal!G$4:G$1600,SMALL(IF(Nota_Fiscal!L$4:L$1600=A$5,ROW(Nota_Fiscal!L$4:L$1600)-ROWS($A$1:$A$3)),ROW($A7))),"") -> STRINGER WG | C16: =IFERROR(INDEX(Nota_Fiscal!I$4:I$1600,SMALL(IF(Nota_Fiscal!L$4:L$1600=A$5,ROW(Nota_Fiscal!L$4:L$1600)-ROWS($A$1:$A$3)),ROW($A7))),"") -> 180 | D16: =IFERROR(INDEX(Saída!$D$4:$D$38,SMALL(IF(Saída!$H$4:$H$38=A$5,ROW(Saída!$H$4:$H$38)-ROWS($A$1:$A$3)),ROW($A7))),"") -> 2023-08-30 | E16: =IFERROR(INDEX(Saída!$E$4:$E$38,SMALL(IF(Saída!$H$4:$H$38=A$5,ROW(Saída!$H$4:$H$38)-ROWS($A$1:$A$3)),ROW($A7))),"") -> STRINGER WG | F16: =IFERROR(INDEX(Saída!$F$4:$F$38,SMALL(IF(Saída!$H$4:$H$38=A$5,ROW(Saída!$H$4:$H$38)-ROWS($A$1:$A$3)),ROW($A7))),"") -> 40 | G16: =IFERROR(INDEX(Saída!$B$4:$B$38,SMALL(IF(Saída!$H$4:$H$38=A$5,ROW(Saída!$H$4:$H$38)-ROWS($A$1:$A$3)),ROW($A7))),"") -> Cilo
A17: =IFERROR(INDEX(Nota_Fiscal!$C$4:$C$1600,SMALL(IF(Nota_Fiscal!L$4:L$1600=A$5,ROW(Nota_Fiscal!L$4:L$1600)-ROWS($A$1:$A$3)),ROW($A8))),"") -> 2023-06-07 | B17: =IFERROR(INDEX(Nota_Fiscal!G$4:G$1600,SMALL(IF(Nota_Fiscal!L$4:L$1600=A$5,ROW(Nota_Fiscal!L$4:L$1600)-ROWS($A$1:$A$3)),ROW($A8))),"") -> STRINGER WG | C17: =IFERROR(INDEX(Nota_Fiscal!I$4:I$1600,SMALL(IF(Nota_Fiscal!L$4:L$1600=A$5,ROW(Nota_Fiscal!L$4:L$1600)-ROWS($A$1:$A$3)),ROW($A8))),"") -> 640 | D17: =IFERROR(INDEX(Saída!$D$4:$D$38,SMALL(IF(Saída!$H$4:$H$38=A$5,ROW(Saída!$H$4:$H$38)-ROWS($A$1:$A$3)),ROW($A8))),"") -> 2023-08-30 | E17: =IFERROR(INDEX(Saída!$E$4:$E$38,SMALL(IF(Saída!$H$4:$H$38=A$5,ROW(Saída!$H$4:$H$38)-ROWS($A$1:$A$3)),ROW($A8))),"") -> CLETODIM CCAB EC | F17: =IFERROR(INDEX(Saída!$F$4:$F$38,SMALL(IF(Saída!$H$4:$H$38=A$5,ROW(Saída!$H$4:$H$38)-ROWS($A$1:$A$3)),ROW($A8))),"") -> 15 | G17: =IFERROR(INDEX(Saída!$B$4:$B$38,SMALL(IF(Saída!$H$4:$H$38=A$5,ROW(Saída!$H$4:$H$38)-ROWS($A$1:$A$3)),ROW($A8))),"") -> Cilo
A18: =IFERROR(INDEX(Nota_Fiscal!$C$4:$C$1600,SMALL(IF(Nota_Fiscal!L$4:L$1600=A$5,ROW(Nota_Fiscal!L$4:L$1600)-ROWS($A$1:$A$3)),ROW($A9))),"") -> 2023-06-07 | B18: =IFERROR(INDEX(Nota_Fiscal!G$4:G$1600,SMALL(IF(Nota_Fiscal!L$4:L$1600=A$5,ROW(Nota_Fiscal!L$4:L$1600)-ROWS($A$1:$A$3)),ROW($A9))),"") -> STRINGER WG | C18: =IFERROR(INDEX(Nota_Fiscal!I$4:I$1600,SMALL(IF(Nota_Fiscal!L$4:L$1600=A$5,ROW(Nota_Fiscal!L$4:L$1600)-ROWS($A$1:$A$3)),ROW($A9))),"") -> 1180 | D18: =IFERROR(INDEX(Saída!$D$4:$D$38,SMALL(IF(Saída!$H$4:$H$38=A$5,ROW(Saída!$H$4:$H$38)-ROWS($A$1:$A$3)),ROW($A9))),"") -> 2023-08-30 | E18: =IFERROR(INDEX(Saída!$E$4:$E$38,SMALL(IF(Saída!$H$4:$H$38=A$5,ROW(Saída!$H$4:$H$38)-ROWS($A$1:$A$3)),ROW($A9))),"") -> STRINGER WG | F18: =IFERROR(INDEX(Saída!$F$4:$F$38,SMALL(IF(Saída!$H$4:$H$38=A$5,ROW(Saída!$H$4:$H$38)-ROWS($A$1:$A$3)),ROW($A9))),"") -> 40 | G18: =IFERROR(INDEX(Saída!$B$4:$B$38,SMALL(IF(Saída!$H$4:$H$38=A$5,ROW(Saída!$H$4:$H$38)-ROWS($A$1:$A$3)),ROW($A9))),"") -> Culhambi
A19: =IFERROR(INDEX(Nota_Fiscal!$C$4:$C$1600,SMALL(IF(Nota_Fiscal!L$4:L$1600=A$5,ROW(Nota_Fiscal!L$4:L$1600)-ROWS($A$1:$A$3)),ROW($A10))),"") -> 2023-08-24 | B19: =IFERROR(INDEX(Nota_Fiscal!G$4:G$1600,SMALL(IF(Nota_Fiscal!L$4:L$1600=A$5,ROW(Nota_Fiscal!L$4:L$1600)-ROWS($A$1:$A$3)),ROW($A10))),"") -> SAPEK MAX 880 | C19: =IFERROR(INDEX(Nota_Fiscal!I$4:I$1600,SMALL(IF(Nota_Fiscal!L$4:L$1600=A$5,ROW(Nota_Fiscal!L$4:L$1600)-ROWS($A$1:$A$3)),ROW($A10))),"") -> 175 | D19: =IFERROR(INDEX(Saída!$D$4:$D$38,SMALL(IF(Saída!$H$4:$H$38=A$5,ROW(Saída!$H$4:$H$38)-ROWS($A$1:$A$3)),ROW($A10))),"") -> 2023-08-30 | E19: =IFERROR(INDEX(Saída!$E$4:$E$38,SMALL(IF(Saída!$H$4:$H$38=A$5,ROW(Saída!$H$4:$H$38)-ROWS($A$1:$A$3)),ROW($A10))),"") -> CLETODIM CCAB EC | F19: =IFERROR(INDEX(Saída!$F$4:$F$38,SMALL(IF(Saída!$H$4:$H$38=A$5,ROW(Saída!$H$4:$H$38)-ROWS($A$1:$A$3)),ROW($A10))),"") -> 15 | G19: =IFERROR(INDEX(Saída!$B$4:$B$38,SMALL(IF(Saída!$H$4:$H$38=A$5,ROW(Saída!$H$4:$H$38)-ROWS($A$1:$A$3)),ROW($A10))),"") -> Culhambi
A20: =IFERROR(INDEX(Nota_Fiscal!$C$4:$C$1600,SMALL(IF(Nota_Fiscal!L$4:L$1600=A$5,ROW(Nota_Fiscal!L$4:L$1600)-ROWS($A$1:$A$3)),ROW($A11))),"") -> 2023-08-24 | B20: =IFERROR(INDEX(Nota_Fiscal!G$4:G$1600,SMALL(IF(Nota_Fiscal!L$4:L$1600=A$5,ROW(Nota_Fiscal!L$4:L$1600)-ROWS($A$1:$A$3)),ROW($A11))),"") -> CLETODIM CCAB EC | C20: =IFERROR(INDEX(Nota_Fiscal!I$4:I$1600,SMALL(IF(Nota_Fiscal!L$4:L$1600=A$5,ROW(Nota_Fiscal!L$4:L$1600)-ROWS($A$1:$A$3)),ROW($A11))),"") -> 360 | D20: =IFERROR(INDEX(Saída!$D$4:$D$38,SMALL(IF(Saída!$H$4:$H$38=A$5,ROW(Saída!$H$4:$H$38)-ROWS($A$1:$A$3)),ROW($A11))),"") -> 2023-08-30 | E20: =IFERROR(INDEX(Saída!$E$4:$E$38,SMALL(IF(Saída!$H$4:$H$38=A$5,ROW(Saída!$H$4:$H$38)-ROWS($A$1:$A$3)),ROW($A11))),"") -> STRINGER WG | F20: =IFERROR(INDEX(Saída!$F$4:$F$38,SMALL(IF(Saída!$H$4:$H$38=A$5,ROW(Saída!$H$4:$H$38)-ROWS($A$1:$A$3)),ROW($A11))),"") -> 45 | G20: =IFERROR(INDEX(Saída!$B$4:$B$38,SMALL(IF(Saída!$H$4:$H$38=A$5,ROW(Saída!$H$4:$H$38)-ROWS($A$1:$A$3)),ROW($A11))),"") -> 5
A21: =IFERROR(INDEX(Nota_Fiscal!$C$4:$C$1600,SMALL(IF(Nota_Fiscal!L$4:L$1600=A$5,ROW(Nota_Fiscal!L$4:L$1600)-ROWS($A$1:$A$3)),ROW($A12))),"") ->  | B21: =IFERROR(INDEX(Nota_Fiscal!G$4:G$1600,SMALL(IF(Nota_Fiscal!L$4:L$1600=A$5,ROW(Nota_Fiscal!L$4:L$1600)-ROWS($A$1:$A$3)),ROW($A12))),"") ->  | C21: =IFERROR(INDEX(Nota_Fiscal!I$4:I$1600,SMALL(IF(Nota_Fiscal!L$4:L$1600=A$5,ROW(Nota_Fiscal!L$4:L$1600)-ROWS($A$1:$A$3)),ROW($A12))),"") ->  | D21: =IFERROR(INDEX(Saída!$D$4:$D$38,SMALL(IF(Saída!$H$4:$H$38=A$5,ROW(Saída!$H$4:$H$38)-ROWS($A$1:$A$3)),ROW($A12))),"") -> 2023-08-30 | E21: =IFERROR(INDEX(Saída!$E$4:$E$38,SMALL(IF(Saída!$H$4:$H$38=A$5,ROW(Saída!$H$4:$H$38)-ROWS($A$1:$A$3)),ROW($A12))),"") -> CLETODIM CCAB EC | F21: =IFERROR(INDEX(Saída!$F$4:$F$38,SMALL(IF(Saída!$H$4:$H$38=A$5,ROW(Saída!$H$4:$H$38)-ROWS($A$1:$A$3)),ROW($A12))),"") -> 18 | G21: =IFERROR(INDEX(Saída!$B$4:$B$38,SMALL(IF(Saída!$H$4:$H$38=A$5,ROW(Saída!$H$4:$H$38)-ROWS($A$1:$A$3)),ROW($A12))),"") -> 5
A22: =IFERROR(INDEX(Nota_Fiscal!$C$4:$C$1600,SMALL(IF(Nota_Fiscal!L$4:L$1600=A$5,ROW(Nota_Fiscal!L$4:L$1600)-ROWS($A$1:$A$3)),ROW($A13))),"") ->  | B22: =IFERROR(INDEX(Nota_Fiscal!G$4:G$1600,SMALL(IF(Nota_Fiscal!L$4:L$1600=A$5,ROW(Nota_Fiscal!L$4:L$1600)-ROWS($A$1:$A$3)),ROW($A13))),"") ->  | C22: =IFERROR(INDEX(Nota_Fiscal!I$4:I$1600,SMALL(IF(Nota_Fiscal!L$4:L$1600=A$5,ROW(Nota_Fiscal!L$4:L$1600)-ROWS($A$1:$A$3)),ROW($A13))),"") ->  | D22: =IFERROR(INDEX(Saída!$D$4:$D$38,SMALL(IF(Saída!$H$4:$H$38=A$5,ROW(Saída!$H$4:$H$38)-ROWS($A$1:$A$3)),ROW($A13))),"") -> 2023-08-31 | E22: =IFERROR(INDEX(Saída!$E$4:$E$38,SMALL(IF(Saída!$H$4:$H$38=A$5,ROW(Saída!$H$4:$H$38)-ROWS($A$1:$A$3)),ROW($A13))),"") -> STRINGER WG | F22: =IFERROR(INDEX(Saída!$F$4:$F$38,SMALL(IF(Saída!$H$4:$H$38=A$5,ROW(Saída!$H$4:$H$38)-ROWS($A$1:$A$3)),ROW($A13))),"") -> 90 | G22: =IFERROR(INDEX(Saída!$B$4:$B$38,SMALL(IF(Saída!$H$4:$H$38=A$5,ROW(Saída!$H$4:$H$38)-ROWS($A$1:$A$3)),ROW($A13))),"") -> 5
A23: =IFERROR(INDEX(Nota_Fiscal!$C$4:$C$1600,SMALL(IF(Nota_Fiscal!L$4:L$1600=A$5,ROW(Nota_Fiscal!L$4:L$1600)-ROWS($A$1:$A$3)),ROW($A14))),"") ->  | B23: =IFERROR(INDEX(Nota_Fiscal!G$4:G$1600,SMALL(IF(Nota_Fiscal!L$4:L$1600=A$5,ROW(Nota_Fiscal!L$4:L$1600)-ROWS($A$1:$A$3)),ROW($A14))),"") ->  | C23: =IFERROR(INDEX(Nota_Fiscal!I$4:I$1600,SMALL(IF(Nota_Fiscal!L$4:L$1600=A$5,ROW(Nota_Fiscal!L$4:L$1600)-ROWS($A$1:$A$3)),ROW($A14))),"") ->  | D23: =IFERROR(INDEX(Saída!$D$4:$D$38,SMALL(IF(Saída!$H$4:$H$38=A$5,ROW(Saída!$H$4:$H$38)-ROWS($A$1:$A$3)),ROW($A14))),"") -> 2023-08-31 | E23: =IFERROR(INDEX(Saída!$E$4:$E$38,SMALL(IF(Saída!$H$4:$H$38=A$5,ROW(Saída!$H$4:$H$38)-ROWS($A$1:$A$3)),ROW($A14))),"") -> CLETODIM CCAB EC | F23: =IFERROR(INDEX(Saída!$F$4:$F$38,SMALL(IF(Saída!$H$4:$H$38=A$5,ROW(Saída!$H$4:$H$38)-ROWS($A$1:$A$3)),ROW($A14))),"") -> 36 | G23: =IFERROR(INDEX(Saída!$B$4:$B$38,SMALL(IF(Saída!$H$4:$H$38=A$5,ROW(Saída!$H$4:$H$38)-ROWS($A$1:$A$3)),ROW($A14))),"") -> 5
A24: =IFERROR(INDEX(Nota_Fiscal!$C$4:$C$1600,SMALL(IF(Nota_Fiscal!L$4:L$1600=A$5,ROW(Nota_Fiscal!L$4:L$1600)-ROWS($A$1:$A$3)),ROW($A15))),"") ->  | B24: =IFERROR(INDEX(Nota_Fiscal!G$4:G$1600,SMALL(IF(Nota_Fiscal!L$4:L$1600=A$5,ROW(Nota_Fiscal!L$4:L$1600)-ROWS($A$1:$A$3)),ROW($A15))),"") ->  | C24: =IFERROR(INDEX(Nota_Fiscal!I$4:I$1600,SMALL(IF(Nota_Fiscal!L$4:L$1600=A$5,ROW(Nota_Fiscal!L$4:L$1600)-ROWS($A$1:$A$3)),ROW($A15))),"") ->  | D24: =IFERROR(INDEX(Saída!$D$4:$D$38,SMALL(IF(Saída!$H$4:$H$38=A$5,ROW(Saída!$H$4:$H$38)-ROWS($A$1:$A$3)),ROW($A15))),"") -> 2023-08-31 | E24: =IFERROR(INDEX(Saída!$E$4:$E$38,SMALL(IF(Saída!$H$4:$H$38=A$5,ROW(Saída!$H$4:$H$38)-ROWS($A$1:$A$3)),ROW($A15))),"") -> STRINGER WG | F24: =IFERROR(INDEX(Saída!$F$4:$F$38,SMALL(IF(Saída!$H$4:$H$38=A$5,ROW(Saída!$H$4:$H$38)-ROWS($A$1:$A$3)),ROW($A15))),"") -> 65 | G24: =IFERROR(INDEX(Saída!$B$4:$B$38,SMALL(IF(Saída!$H$4:$H$38=A$5,ROW(Saída!$H$4:$H$38)-ROWS($A$1:$A$3)),ROW($A15))),"") -> 4
A25: =IFERROR(INDEX(Nota_Fiscal!$C$4:$C$1600,SMALL(IF(Nota_Fiscal!L$4:L$1600=A$5,ROW(Nota_Fiscal!L$4:L$1600)-ROWS($A$1:$A$3)),ROW($A16))),"") ->  | B25: =IFERROR(INDEX(Nota_Fiscal!G$4:G$1600,SMALL(IF(Nota_Fiscal!L$4:L$1600=A$5,ROW(Nota_Fiscal!L$4:L$1600)-ROWS($A$1:$A$3)),ROW($A16))),"") ->  | C25: =IFERROR(INDEX(Nota_Fiscal!I$4:I$1600,SMALL(IF(Nota_Fiscal!L$4:L$1600=A$5,ROW(Nota_Fiscal!L$4:L$1600)-ROWS($A$1:$A$3)),ROW($A16))),"") ->  | D25: =IFERROR(INDEX(Saída!$D$4:$D$38,SMALL(IF(Saída!$H$4:$H$38=A$5,ROW(Saída!$H$4:$H$38)-ROWS($A$1:$A$3)),ROW($A16))),"") -> 2023-08-31 | E25: =IFERROR(INDEX(Saída!$E$4:$E$38,SMALL(IF(Saída!$H$4:$H$38=A$5,ROW(Saída!$H$4:$H$38)-ROWS($A$1:$A$3)),ROW($A16))),"") -> CLETODIM CCAB EC | F25: =IFERROR(INDEX(Saída!$F$4:$F$38,SMALL(IF(Saída!$H$4:$H$38=A$5,ROW(Saída!$H$4:$H$38)-ROWS($A$1:$A$3)),ROW($A16))),"") -> 27 | G25: =IFERROR(INDEX(Saída!$B$4:$B$38,SMALL(IF(Saída!$H$4:$H$38=A$5,ROW(Saída!$H$4:$H$38)-ROWS($A$1:$A$3)),ROW($A16))),"") -> 4
A26: =IFERROR(INDEX(Nota_Fiscal!$C$4:$C$1600,SMALL(IF(Nota_Fiscal!L$4:L$1600=A$5,ROW(Nota_Fiscal!L$4:L$1600)-ROWS($A$1:$A$3)),ROW($A17))),"") ->  | B26: =IFERROR(INDEX(Nota_Fiscal!G$4:G$1600,SMALL(IF(Nota_Fiscal!L$4:L$1600=A$5,ROW(Nota_Fiscal!L$4:L$1600)-ROWS($A$1:$A$3)),ROW($A17))),"") ->  | C26: =IFERROR(INDEX(Nota_Fiscal!I$4:I$1600,SMALL(IF(Nota_Fiscal!L$4:L$1600=A$5,ROW(Nota_Fiscal!L$4:L$1600)-ROWS($A$1:$A$3)),ROW($A17))),"") ->  | D26: =IFERROR(INDEX(Saída!$D$4:$D$38,SMALL(IF(Saída!$H$4:$H$38=A$5,ROW(Saída!$H$4:$H$38)-ROWS($A$1:$A$3)),ROW($A17))),"") ->  | E26: =IFERROR(INDEX(Saída!$E$4:$E$38,SMALL(IF(Saída!$H$4:$H$38=A$5,ROW(Saída!$H$4:$H$38)-ROWS($A$1:$A$3)),ROW($A17))),"") ->  | F26: =IFERROR(INDEX(Saída!$F$4:$F$38,SMALL(IF(Saída!$H$4:$H$38=A$5,ROW(Saída!$H$4:$H$38)-ROWS($A$1:$A$3)),ROW($A17))),"") ->  | G26: =IFERROR(INDEX(Saída!$B$4:$B$38,SMALL(IF(Saída!$H$4:$H$38=A$5,ROW(Saída!$H$4:$H$38)-ROWS($A$1:$A$3)),ROW($A17))),"") -> 
A27: =IFERROR(INDEX(Nota_Fiscal!$C$4:$C$1600,SMALL(IF(Nota_Fiscal!L$4:L$1600=A$5,ROW(Nota_Fiscal!L$4:L$1600)-ROWS($A$1:$A$3)),ROW($A18))),"") ->  | B27: =IFERROR(INDEX(Nota_Fiscal!G$4:G$1600,SMALL(IF(Nota_Fiscal!L$4:L$1600=A$5,ROW(Nota_Fiscal!L$4:L$1600)-ROWS($A$1:$A$3)),ROW($A18))),"") ->  | C27: =IFERROR(INDEX(Nota_Fiscal!I$4:I$1600,SMALL(IF(Nota_Fiscal!L$4:L$1600=A$5,ROW(Nota_Fiscal!L$4:L$1600)-ROWS($A$1:$A$3)),ROW($A18))),"") ->  | D27: =IFERROR(INDEX(Saída!$D$4:$D$38,SMALL(IF(Saída!$H$4:$H$38=A$5,ROW(Saída!$H$4:$H$38)-ROWS($A$1:$A$3)),ROW($A18))),"") ->  | E27: =IFERROR(INDEX(Saída!$E$4:$E$38,SMALL(IF(Saída!$H$4:$H$38=A$5,ROW(Saída!$H$4:$H$38)-ROWS($A$1:$A$3)),ROW($A18))),"") ->  | F27: =IFERROR(INDEX(Saída!$F$4:$F$38,SMALL(IF(Saída!$H$4:$H$38=A$5,ROW(Saída!$H$4:$H$38)-ROWS($A$1:$A$3)),ROW($A18))),"") ->  | G27: =IFERROR(INDEX(Saída!$B$4:$B$38,SMALL(IF(Saída!$H$4:$H$38=A$5,ROW(Saída!$H$4:$H$38)-ROWS($A$1:$A$3)),ROW($A18))),"") -> 
A28: =IFERROR(INDEX(Nota_Fiscal!$C$4:$C$1600,SMALL(IF(Nota_Fiscal!L$4:L$1600=A$5,ROW(Nota_Fiscal!L$4:L$1600)-ROWS($A$1:$A$3)),ROW($A19))),"") ->  | B28: =IFERROR(INDEX(Nota_Fiscal!G$4:G$1600,SMALL(IF(Nota_Fiscal!L$4:L$1600=A$5,ROW(Nota_Fiscal!L$4:L$1600)-ROWS($A$1:$A$3)),ROW($A19))),"") ->  | C28: =IFERROR(INDEX(Nota_Fiscal!I$4:I$1600,SMALL(IF(Nota_Fiscal!L$4:L$1600=A$5,ROW(Nota_Fiscal!L$4:L$1600)-ROWS($A$1:$A$3)),ROW($A19))),"") ->  | D28: =IFERROR(INDEX(Saída!$D$4:$D$38,SMALL(IF(Saída!$H$4:$H$38=A$5,ROW(Saída!$H$4:$H$38)-ROWS($A$1:$A$3)),ROW($A19))),"") ->  | E28: =IFERROR(INDEX(Saída!$E$4:$E$38,SMALL(IF(Saída!$H$4:$H$38=A$5,ROW(Saída!$H$4:$H$38)-ROWS($A$1:$A$3)),ROW($A19))),"") ->  | F28: =IFERROR(INDEX(Saída!$F$4:$F$38,SMALL(IF(Saída!$H$4:$H$38=A$5,ROW(Saída!$H$4:$H$38)-ROWS($A$1:$A$3)),ROW($A19))),"") ->  | G28: =IFERROR(INDEX(Saída!$B$4:$B$38,SMALL(IF(Saída!$H$4:$H$38=A$5,ROW(Saída!$H$4:$H$38)-ROWS($A$1:$A$3)),ROW($A19))),"") -> 
A29: =IFERROR(INDEX(Nota_Fiscal!$C$4:$C$1600,SMALL(IF(Nota_Fiscal!L$4:L$1600=A$5,ROW(Nota_Fiscal!L$4:L$1600)-ROWS($A$1:$A$3)),ROW($A20))),"") ->  | B29: =IFERROR(INDEX(Nota_Fiscal!G$4:G$1600,SMALL(IF(Nota_Fiscal!L$4:L$1600=A$5,ROW(Nota_Fiscal!L$4:L$1600)-ROWS($A$1:$A$3)),ROW($A20))),"") ->  | C29: =IFERROR(INDEX(Nota_Fiscal!I$4:I$1600,SMALL(IF(Nota_Fiscal!L$4:L$1600=A$5,ROW(Nota_Fiscal!L$4:L$1600)-ROWS($A$1:$A$3)),ROW($A20))),"") ->  | D29: =IFERROR(INDEX(Saída!$D$4:$D$38,SMALL(IF(Saída!$H$4:$H$38=A$5,ROW(Saída!$H$4:$H$38)-ROWS($A$1:$A$3)),ROW($A20))),"") ->  | E29: =IFERROR(INDEX(Saída!$E$4:$E$38,SMALL(IF(Saída!$H$4:$H$38=A$5,ROW(Saída!$H$4:$H$38)-ROWS($A$1:$A$3)),ROW($A20))),"") ->  | F29: =IFERROR(INDEX(Saída!$F$4:$F$38,SMALL(IF(Saída!$H$4:$H$38=A$5,ROW(Saída!$H$4:$H$38)-ROWS($A$1:$A$3)),ROW($A20))),"") ->  | G29: =IFERROR(INDEX(Saída!$B$4:$B$38,SMALL(IF(Saída!$H$4:$H$38=A$5,ROW(Saída!$H$4:$H$38)-ROWS($A$1:$A$3)),ROW($A20))),"") -> 

Sheet Saída
A1: CADASTRO DAS SAÍDAS DE INSUMOS
A3: INSUMO | B3: TALHÃO | C3: UN | D3: DATA | E3: PRODUTO | F3: QTD | G3: ATIVIDADE | H3: Coluna1
A4: Defensivo Granulado | B4: 6 | C4: =IFERROR(VLOOKUP(A4,Insumos!A:B,2,FALSE),"") -> Kg | D4: 2023-08-04 | E4: STRINGER WG | F4: 220 | G4: dessecação | H4: =IFERROR(VLOOKUP(E4,Nota_Fiscal!$G$4:$L$1000,6,0),"") -> herbicida
A5: Defensivo Galão | B5: 6 | C5: =IFERROR(VLOOKUP(A5,Insumos!A:B,2,FALSE),"") -> Lt | D5: 2023-08-04 | E5: TRICLON | F5: 165 | G5: dessecação | H5: =IFERROR(VLOOKUP(E5,Nota_Fiscal!$G$4:$L$1000,6,0),"") -> herbicida
A6: Defensivo Galão | B6: 6 | C6: =IFERROR(VLOOKUP(A6,Insumos!A:B,2,FALSE),"") -> Lt | D6: 2023-08-04 | E6: IHARA GOLD | F6: 30 | G6: dessecação | H6: =IFERROR(VLOOKUP(E6,Nota_Fiscal!$G$4:$L$1000,6,0),"") -> óleo
A7: Defensivo Galão | B7: 6 | C7: =IFERROR(VLOOKUP(A7,Insumos!A:B,2,FALSE),"") -> Lt | D7: 2023-08-04 | E7: AURORA | F7: 8 | G7: dessecação | H7: =IFERROR(VLOOKUP(E7,Nota_Fiscal!$G$4:$L$1000,6,0),"") -> 
A8: Defensivo Galão | B8: 6 | C8: =IFERROR(VLOOKUP(A8,Insumos!A:B,2,FALSE),"") -> Lt | D8: 2023-08-15 | E8: OFF ROAD | F8: 220 | G8: Sequencial | H8: =IFERROR(VLOOKUP(E8,Nota_Fiscal!$G$4:$L$1000,6,0),"") -> herbicida
A9: Defensivo Galão | B9: 6 | C9: =IFERROR(VLOOKUP(A9,Insumos!A:B,2,FALSE),"") -> Lt | D9: 2023-08-15 | E9: IHARA GOLD | F9: 30 | G9: Sequencial | H9: =IFERROR(VLOOKUP(E9,Nota_Fiscal!$G$4:$L$1000,6,0),"") -> óleo
A10: Defensivo Granulado | B10: 6 | C10: =IFERROR(VLOOKUP(A10,Insumos!A:B,2,FALSE),"") -> Kg | D10: 2023-08-23 | E10: STRINGER WG | F10: 120 | G10: dessecação | H10: =IFERROR(VLOOKUP(E10,Nota_Fiscal!$G$4:$L$1000,6,0),"") -> herbicida
A11: Defensivo Galão | B11: 6 | C11: =IFERROR(VLOOKUP(A11,Insumos!A:B,2,FALSE),"") -> Lt | D11: 2023-08-23 | E11: TRICLON | F11: 90 | G11: dessecação | H11: =IFERROR(VLOOKUP(E11,Nota_Fiscal!$G$4:$L$1000,6,0),"") -> herbicida
A12: Defensivo Galão | B12: 6 | C12: =IFERROR(VLOOKUP(A12,Insumos!A:B,2,FALSE),"") -> Lt | D12: 2023-08-23 | E12: AURORA | F12: 4 | G12: dessecação | H12: =IFERROR(VLOOKUP(E12,Nota_Fiscal!$G$4:$L$1000,6,0),"") -> 
A13: Defensivo Galão | B13: 6 | C13: =IFERROR(VLOOKUP(A13,Insumos!A:B,2,FALSE),"") -> Lt | D13: 2023-08-23 | E13: IHARA GOLD | F13: 20 | G13: dessecação | H13: =IFERROR(VLOOKUP(E13,Nota_Fiscal!$G$4:$L$1000,6,0),"") -> óleo
A14: Defensivo Granulado | B14: 1 | C14: =IFERROR(VLOOKUP(A14,Insumos!A:B,2,FALSE),"") -> Kg | D14: 2023-08-24 | E14: STRINGER WG | F14: 155 | G14: dessecação | H14: =IFERROR(VLOOKUP(E14,Nota_Fiscal!$G$4:$L$1000,6,0),"") -> herbicida
A15: Defensivo Granulado | B15: Cilo | C15: =IFERROR(VLOOKUP(A15,Insumos!A:B,2,FALSE),"") -> Kg | D15: 2023-08-30 | E15: STRINGER WG | F15: 40 | G15: dessecação | H15: =IFERROR(VLOOKUP(E15,Nota_Fiscal!$G$4:$L$1000,6,0),"") -> herbicida
A16: Defensivo Galão | B16: Cilo | C16: =IFERROR(VLOOKUP(A16,Insumos!A:B,2,FALSE),"") -> Lt | D16: 2023-08-30 | E16: CLETODIM CCAB EC | F16: 15 | G16: dessecação | H16: =IFERROR(VLOOKUP(E16,Nota_Fiscal!$G$4:$L$1000,6,0),"") -> herbicida
A17: Defensivo Galão | B17: Cilo | C17: =IFERROR(VLOOKUP(A17,Insumos!A:B,2,FALSE),"") -> Lt | D17: 2023-08-30 | E17: CADDET BB | F17: 7.5 | G17: dessecação | H17: =IFERROR(VLOOKUP(E17,Nota_Fiscal!$G$4:$L$1000,6,0),"") -> óleo
A18: Defensivo Galão | B18: Cilo | C18: =IFERROR(VLOOKUP(A18,Insumos!A:B,2,FALSE),"") -> Lt | D18: 2023-08-30 | E18: ATUMUS TANDER | F18: 1 | G18: dessecação | H18: =IFERROR(VLOOKUP(E18,Nota_Fiscal!$G$4:$L$1000,6,0),"") -> Adjuvante
A19: Defensivo Granulado | B19: Culhambi | C19: =IFERROR(VLOOKUP(A19,Insumos!A:B,2,FALSE),"") -> Kg | D19: 2023-08-30 | E19: STRINGER WG | F19: 40 | G19: dessecação | H19: =IFERROR(VLOOKUP(E19,Nota_Fiscal!$G$4:$L$1000,6,0),"") -> herbicida
A20: Defensivo Galão | B20: Culhambi | C20: =IFERROR(VLOOKUP(A20,Insumos!A:B,2,FALSE),"") -> Lt | D20: 2023-08-30 | E20: CLETODIM CCAB EC | F20: 15 | G20: dessecação | H20: =IFERROR(VLOOKUP(E20,Nota_Fiscal!$G$4:$L$1000,6,0),"") -> herbicida
A21: Defensivo Galão | B21: Culhambi | C21: =IFERROR(VLOOKUP(A21,Insumos!A:B,2,FALSE),"") -> Lt | D21: 2023-08-30 | E21: CADDET BB | F21: 7.5 | G21: dessecação | H21: =IFERROR(VLOOKUP(E21,Nota_Fiscal!$G$4:$L$1000,6,0),"") -> óleo
A22: Defensivo Galão | B22: Culhambi | C22: =IFERROR(VLOOKUP(A22,Insumos!A:B,2,FALSE),"") -> Lt | D22: 2023-08-30 | E22: ATUMUS TANDER | F22: 1 | G22: dessecação | H22: =IFERROR(VLOOKUP(E22,Nota_Fiscal!$G$4:$L$1000,6,0),"") -> Adjuvante
A23: Defensivo Galão | B23: 5 | C23: =IFERROR(VLOOKUP(A23,Insumos!A:B,2,FALSE),"") -> Lt | D23: 2023-08-30 | E23: STRINGER WG | F23: 45 | G23: dessecação | H23: =IFERROR(VLOOKUP(E23,Nota_Fiscal!$G$4:$L$1000,6,0),"") -> herbicida
A24: Defensivo Galão | B24: 5 | C24: =IFERROR(VLOOKUP(A24,Insumos!A:B,2,FALSE),"") -> Lt | D24: 2023-08-30 | E24: CLETODIM CCAB EC | F24: 18 | G24: dessecação | H24: =IFERROR(VLOOKUP(E24,Nota_Fiscal!$G$4:$L$1000,6,0),"") -> herbicida
A25: Defensivo Galão | B25: 5 | C25: =IFERROR(VLOOKUP(A25,Insumos!A:B,2,FALSE),"") -> Lt | D25: 2023-08-30 | E25: CADDET BB | F25: 9 | G25: dessecação | H25: =IFERROR(VLOOKUP(E25,Nota_Fiscal!$G$4:$L$1000,6,0),"") -> óleo
A26: Defensivo Galão | B26: 5 | C26: =IFERROR(VLOOKUP(A26,Insumos!A:B,2,FALSE),"") -> Lt | D26: 2023-08-30 | E26: ATUMUS TANDER | F26: 1 | G26: dessecação | H26: =IFERROR(VLOOKUP(E26,Nota_Fiscal!$G$4:$L$1000,6,0),"") -> Adjuvante
A27: Defensivo Galão | B27: 5 | C27: =IFERROR(VLOOKUP(A27,Insumos!A:B,2,FALSE),"") -> Lt | D27: 2023-08-31 | E27: AURORA | F27: 2 | G27: dessecação | H27: =IFERROR(VLOOKUP(E27,Nota_Fiscal!$G$4:$L$1000,6,0),"") -> 
A28: Defensivo Galão | B28: 5 | C28: =IFERROR(VLOOKUP(A28,Insumos!A:B,2,FALSE),"") -> Lt | D28: 2023-08-31 | E28: STRINGER WG | F28: 90 | G28: dessecação | H28: =IFERROR(VLOOKUP(E28,Nota_Fiscal!$G$4:$L$1000,6,0),"") -> herbicida
A29: Defensivo Galão | B29: 5 | C29: =IFERROR(VLOOKUP(A29,Insumos!A:B,2,FALSE),"") -> Lt | D29: 2023-08-31 | E29: CLETODIM CCAB EC | F29: 36 | G29: dessecação | H29: =IFERROR(VLOOKUP(E29,Nota_Fiscal!$G$4:$L$1000,6,0),"") -> herbicida
A30: Defensivo Galão | B30: 5 | C30: =IFERROR(VLOOKUP(A30,Insumos!A:B,2,FALSE),"") -> Lt | D30: 2023-08-31 | E30: CADDET BB | F30: 18 | G30: dessecação | H30: =IFERROR(VLOOKUP(E30,Nota_Fiscal!$G$4:$L$1000,6,0),"") -> óleo
A31: Defensivo Galão | B31: 5 | C31: =IFERROR(VLOOKUP(A31,Insumos!A:B,2,FALSE),"") -> Lt | D31: 2023-08-31 | E31: ATUMUS TANDER | F31: 2 | G31: dessecação | H31: =IFERROR(VLOOKUP(E31,Nota_Fiscal!$G$4:$L$1000,6,0),"") -> Adjuvante
A32: Defensivo Galão | B32: 5 | C32: =IFERROR(VLOOKUP(A32,Insumos!A:B,2,FALSE),"") -> Lt | D32: 2023-08-31 | E32: AURORA | F32: 2 | G32: dessecação | H32: =IFERROR(VLOOKUP(E32,Nota_Fiscal!$G$4:$L$1000,6,0),"") -> 
A33: Defensivo Galão | B33: 4 | C33: =IFERROR(VLOOKUP(A33,Insumos!A:B,2,FALSE),"") -> Lt | D33: 2023-08-31 | E33: STRINGER WG | F33: 65 | G33: dessecação | H33: =IFERROR(VLOOKUP(E33,Nota_Fiscal!$G$4:$L$1000,6,0),"") -> herbicida
A34: Defensivo Galão | B34: 4 | C34: =IFERROR(VLOOKUP(A34,Insumos!A:B,2,FALSE),"") -> Lt | D34: 2023-08-31 | E34: CLETODIM CCAB EC | F34: 27 | G34: dessecação | H34: =IFERROR(VLOOKUP(E34,Nota_Fiscal!$G$4:$L$1000,6,0),"") -> herbicida
A35: Defensivo Galão | B35: 4 | C35: =IFERROR(VLOOKUP(A35,Insumos!A:B,2,FALSE),"") -> Lt | D35: 2023-08-31 | E35: CADDET BB | F35: 13.5 | G35: dessecação | H35: =IFERROR(VLOOKUP(E35,Nota_Fiscal!$G$4:$L$1000,6,0),"") -> óleo
A36: Defensivo Galão | B36: 4 | C36: =IFERROR(VLOOKUP(A36,Insumos!A:B,2,FALSE),"") -> Lt | D36: 2023-08-31 | E36: ATUMUS TANDER | F36: 1.5 | G36: dessecação | H36: =IFERROR(VLOOKUP(E36,Nota_Fiscal!$G$4:$L$1000,6,0),"") -> Adjuvante
C37: =IFERROR(VLOOKUP(A37,Insumos!A:B,2,FALSE),"") ->  | H37: =IFERROR(VLOOKUP(E37,Nota_Fiscal!$G$4:$L$1000,6,0),"") -> 
C38: =IFERROR(VLOOKUP(A38,Insumos!A:B,2,FALSE),"") ->  | H38: =IFERROR(VLOOKUP(E38,Nota_Fiscal!$G$4:$L$1000,6,0),"") -> 

Sheet Atividade (hidden)
A1: CADASTRO DE ATIVIDADES
A3: NOME DA ATIVIDADE
A4: soja
A5: milho
A6: sorgo
A7: milheto
A8: herbicida
A9: fungicida
A10: inseticida
A11: Adjuvante
A12: óleo
A13: Sequencial
A14: Adjuvante
A15: dessecação

Sheet Unidade (hidden)
A1: CADASTRO DE UNIDADE
A3: Unidade
A4: Kg
A5: Lt
A6: Un
A7: Bag
A8: Saco

Sheet Insumos (hidden)
A1: INSUMOS POR CLASSE
A3: INSUMO | B3: UNIDADE | C3: ESTOQUE INICIAL
A4: Adubo | B4: Kg
A5: Defensivo Galão | B5: Lt
A6: Defensivo Granulado | B6: Kg
A7: Cloreto | B7: Kg
A8: Semente de Soja | B8: Kg
A9: Semente de milho | B9: Kg

Sheet Produtos
A1: Produtos
A3: Nome | B3: Entrada | C3: Saida
A4: =IFERROR(INDEX(Nota_Fiscal!$G$4:$G$2504,MATCH(0,COUNTIF($A$3:A3,Nota_Fiscal!$G$4:$G$2504),0)),"") -> OFF ROAD | B4: =SUMIFS(Nota_Fiscal!I4:I2504,Nota_Fiscal!G4:G2504,Tabela1[[#This Row],[Nome]]) -> 600 | C4: =SUMIFS(Saída!$F$4:$F$38,Saída!E$4:E$38,Tabela1[[#This Row],[Nome]]) -> 220
A5: =IFERROR(INDEX(Nota_Fiscal!$G$4:$G$2504,MATCH(0,COUNTIF($A$3:A4,Nota_Fiscal!$G$4:$G$2504),0)),"") -> POQUER | B5: =SUMIFS(Nota_Fiscal!I5:I2505,Nota_Fiscal!G5:G2505,Tabela1[[#This Row],[Nome]]) -> 480 | C5: =SUMIFS(Saída!$F$4:$F$38,Saída!E$4:E$38,Tabela1[[#This Row],[Nome]]) -> 0
A6: =IFERROR(INDEX(Nota_Fiscal!$G$4:$G$2504,MATCH(0,COUNTIF($A$3:A5,Nota_Fiscal!$G$4:$G$2504),0)),"") -> IHARA GOLD | B6: =SUMIFS(Nota_Fiscal!I6:I2506,Nota_Fiscal!G6:G2506,Tabela1[[#This Row],[Nome]]) -> 360 | C6: =SUMIFS(Saída!$F$4:$F$38,Saída!E$4:E$38,Tabela1[[#This Row],[Nome]]) -> 80
A7: =IFERROR(INDEX(Nota_Fiscal!$G$4:$G$2504,MATCH(0,COUNTIF($A$3:A6,Nota_Fiscal!$G$4:$G$2504),0)),"") -> TRICLON | B7: =SUMIFS(Nota_Fiscal!I7:I2507,Nota_Fiscal!G7:G2507,Tabela1[[#This Row],[Nome]]) -> 460 | C7: =SUMIFS(Saída!$F$4:$F$38,Saída!E$4:E$38,Tabela1[[#This Row],[Nome]]) -> 255
A8: =IFERROR(INDEX(Nota_Fiscal!$G$4:$G$2504,MATCH(0,COUNTIF($A$3:A7,Nota_Fiscal!$G$4:$G$2504),0)),"") -> STRINGER WG | B8: =SUMIFS(Nota_Fiscal!I8:I2508,Nota_Fiscal!G8:G2508,Tabela1[[#This Row],[Nome]]) -> 2000 | C8: =SUMIFS(Saída!$F$4:$F$38,Saída!E$4:E$38,Tabela1[[#This Row],[Nome]]) -> 775
A9: =IFERROR(INDEX(Nota_Fiscal!$G$4:$G$2504,MATCH(0,COUNTIF($A$3:A8,Nota_Fiscal!$G$4:$G$2504),0)),"") -> CADDET BB | B9: =SUMIFS(Nota_Fiscal!I9:I2509,Nota_Fiscal!G9:G2509,Tabela1[[#This Row],[Nome]]) -> 120 | C9: =SUMIFS(Saída!$F$4:$F$38,Saída!E$4:E$38,Tabela1[[#This Row],[Nome]]) -> 55.5
A10: =IFERROR(INDEX(Nota_Fiscal!$G$4:$G$2504,MATCH(0,COUNTIF($A$3:A9,Nota_Fiscal!$G$4:$G$2504),0)),"") -> SAPEK MAX 880 | B10: =SUMIFS(Nota_Fiscal!I10:I2510,Nota_Fiscal!G10:G2510,Tabela1[[#This Row],[Nome]]) -> 175 | C10: =SUMIFS(Saída!$F$4:$F$38,Saída!E$4:E$38,Tabela1[[#This Row],[Nome]]) -> 0
A11: =IFERROR(INDEX(Nota_Fiscal!$G$4:$G$2504,MATCH(0,COUNTIF($A$3:A10,Nota_Fiscal!$G$4:$G$2504),0)),"") -> CLETODIM CCAB EC | B11: =SUMIFS(Nota_Fiscal!I11:I2511,Nota_Fiscal!G11:G2511,Tabela1[[#This Row],[Nome]]) -> 360 | C11: =SUMIFS(Saída!$F$4:$F$38,Saída!E$4:E$38,Tabela1[[#This Row],[Nome]]) -> 111
A12: =IFERROR(INDEX(Nota_Fiscal!$G$4:$G$2504,MATCH(0,COUNTIF($A$3:A11,Nota_Fiscal!$G$4:$G$2504),0)),"") -> ATUMUS TANDER | B12: =SUMIFS(Nota_Fiscal!I12:I2512,Nota_Fiscal!G12:G2512,Tabela1[[#This Row],[Nome]]) -> 100 | C12: =SUMIFS(Saída!$F$4:$F$38,Saída!E$4:E$38,Tabela1[[#This Row],[Nome]]) -> 6.5
A13: =IFERROR(INDEX(Nota_Fiscal!$G$4:$G$2504,MATCH(0,COUNTIF($A$3:A12,Nota_Fiscal!$G$4:$G$2504),0)),"") -> 0 | B13: =SUMIFS(Nota_Fiscal!I13:I2513,Nota_Fiscal!G13:G2513,Tabela1[[#This Row],[Nome]]) -> 0 | C13: =SUMIFS(Saída!$F$4:$F$38,Saída!E$4:E$38,Tabela1[[#This Row],[Nome]]) -> 0
A14: =IFERROR(INDEX(Nota_Fiscal!$G$4:$G$2504,MATCH(0,COUNTIF($A$3:A13,Nota_Fiscal!$G$4:$G$2504),0)),"") ->  | B14: =SUMIFS(Nota_Fiscal!I14:I2514,Nota_Fiscal!G14:G2514,Tabela1[[#This Row],[Nome]]) -> 0 | C14: =SUMIFS(Saída!$F$4:$F$38,Saída!E$4:E$38,Tabela1[[#This Row],[Nome]]) -> 0
A15: =IFERROR(INDEX(Nota_Fiscal!$G$4:$G$2504,MATCH(0,COUNTIF($A$3:A14,Nota_Fiscal!$G$4:$G$2504),0)),"") ->  | B15: =SUMIFS(Nota_Fiscal!I15:I2515,Nota_Fiscal!G15:G2515,Tabela1[[#This Row],[Nome]]) -> 0 | C15: =SUMIFS(Saída!$F$4:$F$38,Saída!E$4:E$38,Tabela1[[#This Row],[Nome]]) -> 0
A16: =IFERROR(INDEX(Nota_Fiscal!$G$4:$G$2504,MATCH(0,COUNTIF($A$3:A15,Nota_Fiscal!$G$4:$G$2504),0)),"") ->  | B16: =SUMIFS(Nota_Fiscal!I16:I2516,Nota_Fiscal!G16:G2516,Tabela1[[#This Row],[Nome]]) -> 0 | C16: =SUMIFS(Saída!$F$4:$F$38,Saída!E$4:E$38,Tabela1[[#This Row],[Nome]]) -> 0
A17: =IFERROR(INDEX(Nota_Fiscal!$G$4:$G$2504,MATCH(0,COUNTIF($A$3:A16,Nota_Fiscal!$G$4:$G$2504),0)),"") ->  | B17: =SUMIFS(Nota_Fiscal!I17:I2517,Nota_Fiscal!G17:G2517,Tabela1[[#This Row],[Nome]]) -> 0 | C17: =SUMIFS(Saída!$F$4:$F$38,Saída!E$4:E$38,Tabela1[[#This Row],[Nome]]) -> 0
A18: =IFERROR(INDEX(Nota_Fiscal!$G$4:$G$2504,MATCH(0,COUNTIF($A$3:A17,Nota_Fiscal!$G$4:$G$2504),0)),"") ->  | B18: =SUMIFS(Nota_Fiscal!I18:I2518,Nota_Fiscal!G18:G2518,Tabela1[[#This Row],[Nome]]) -> 0 | C18: =SUMIFS(Saída!$F$4:$F$38,Saída!E$4:E$38,Tabela1[[#This Row],[Nome]]) -> 0
A19: =IFERROR(INDEX(Nota_Fiscal!$G$4:$G$2504,MATCH(0,COUNTIF($A$3:A18,Nota_Fiscal!$G$4:$G$2504),0)),"") ->  | B19: =SUMIFS(Nota_Fiscal!I19:I2519,Nota_Fiscal!G19:G2519,Tabela1[[#This Row],[Nome]]) -> 0 | C19: =SUMIFS(Saída!$F$4:$F$38,Saída!E$4:E$38,Tabela1[[#This Row],[Nome]]) -> 0
A20: =IFERROR(INDEX(Nota_Fiscal!$G$4:$G$2504,MATCH(0,COUNTIF($A$3:A19,Nota_Fiscal!$G$4:$G$2504),0)),"") ->  | B20: =SUMIFS(Nota_Fiscal!I20:I2520,Nota_Fiscal!G20:G2520,Tabela1[[#This Row],[Nome]]) -> 0 | C20: =SUMIFS(Saída!$F$4:$F$38,Saída!E$4:E$38,Tabela1[[#This Row],[Nome]]) -> 0
A21: =IFERROR(INDEX(Nota_Fiscal!$G$4:$G$2504,MATCH(0,COUNTIF($A$3:A20,Nota_Fiscal!$G$4:$G$2504),0)),"") ->  | B21: =SUMIFS(Nota_Fiscal!I21:I2521,Nota_Fiscal!G21:G2521,Tabela1[[#This Row],[Nome]]) -> 0 | C21: =SUMIFS(Saída!$F$4:$F$38,Saída!E$4:E$38,Tabela1[[#This Row],[Nome]]) -> 0
A22: =IFERROR(INDEX(Nota_Fiscal!$G$4:$G$2504,MATCH(0,COUNTIF($A$3:A21,Nota_Fiscal!$G$4:$G$2504),0)),"") ->  | B22: =SUMIFS(Nota_Fiscal!I22:I2522,Nota_Fiscal!G22:G2522,Tabela1[[#This Row],[Nome]]) -> 0 | C22: =SUMIFS(Saída!$F$4:$F$38,Saída!E$4:E$38,Tabela1[[#This Row],[Nome]]) -> 0
A23: =IFERROR(INDEX(Nota_Fiscal!$G$4:$G$2504,MATCH(0,COUNTIF($A$3:A22,Nota_Fiscal!$G$4:$G$2504),0)),"") ->  | B23: =SUMIFS(Nota_Fiscal!I23:I2523,Nota_Fiscal!G23:G2523,Tabela1[[#This Row],[Nome]]) -> 0 | C23: =SUMIFS(Saída!$F$4:$F$38,Saída!E$4:E$38,Tabela1[[#This Row],[Nome]]) -> 0
A24: =IFERROR(INDEX(Nota_Fiscal!$G$4:$G$2504,MATCH(0,COUNTIF($A$3:A23,Nota_Fiscal!$G$4:$G$2504),0)),"") ->  | B24: =SUMIFS(Nota_Fiscal!I24:I2524,Nota_Fiscal!G24:G2524,Tabela1[[#This Row],[Nome]]) -> 0 | C24: =SUMIFS(Saída!$F$4:$F$38,Saída!E$4:E$38,Tabela1[[#This Row],[Nome]]) -> 0
A25: =IFERROR(INDEX(Nota_Fiscal!$G$4:$G$2504,MATCH(0,COUNTIF($A$3:A24,Nota_Fiscal!$G$4:$G$2504),0)),"") ->  | B25: =SUMIFS(Nota_Fiscal!I25:I2525,Nota_Fiscal!G25:G2525,Tabela1[[#This Row],[Nome]]) -> 0 | C25: =SUMIFS(Saída!$F$4:$F$38,Saída!E$4:E$38,Tabela1[[#This Row],[Nome]]) -> 0
A26: =IFERROR(INDEX(Nota_Fiscal!$G$4:$G$2504,MATCH(0,COUNTIF($A$3:A25,Nota_Fiscal!$G$4:$G$2504),0)),"") ->  | B26: =SUMIFS(Nota_Fiscal!I26:I2526,Nota_Fiscal!G26:G2526,Tabela1[[#This Row],[Nome]]) -> 0 | C26: =SUMIFS(Saída!$F$4:$F$38,Saída!E$4:E$38,Tabela1[[#This Row],[Nome]]) -> 0
A27: =IFERROR(INDEX(Nota_Fiscal!$G$4:$G$2504,MATCH(0,COUNTIF($A$3:A26,Nota_Fiscal!$G$4:$G$2504),0)),"") ->  | B27: =SUMIFS(Nota_Fiscal!I27:I2527,Nota_Fiscal!G27:G2527,Tabela1[[#This Row],[Nome]]) -> 0 | C27: =SUMIFS(Saída!$F$4:$F$38,Saída!E$4:E$38,Tabela1[[#This Row],[Nome]]) -> 0
A28: =IFERROR(INDEX(Nota_Fiscal!$G$4:$G$2504,MATCH(0,COUNTIF($A$3:A27,Nota_Fiscal!$G$4:$G$2504),0)),"") ->  | B28: =SUMIFS(Nota_Fiscal!I28:I2528,Nota_Fiscal!G28:G2528,Tabela1[[#This Row],[Nome]]) -> 0 | C28: =SUMIFS(Saída!$F$4:$F$38,Saída!E$4:E$38,Tabela1[[#This Row],[Nome]]) -> 0
A29: =IFERROR(INDEX(Nota_Fiscal!$G$4:$G$2504,MATCH(0,COUNTIF($A$3:A28,Nota_Fiscal!$G$4:$G$2504),0)),"") ->  | B29: =SUMIFS(Nota_Fiscal!I29:I2529,Nota_Fiscal!G29:G2529,Tabela1[[#This Row],[Nome]]) -> 0 | C29: =SUMIFS(Saída!$F$4:$F$38,Saída!E$4:E$38,Tabela1[[#This Row],[Nome]]) -> 0
A30: =IFERROR(INDEX(Nota_Fiscal!$G$4:$G$2504,MATCH(0,COUNTIF($A$3:A29,Nota_Fiscal!$G$4:$G$2504),0)),"") ->  | B30: =SUMIFS(Nota_Fiscal!I30:I2530,Nota_Fiscal!G30:G2530,Tabela1[[#This Row],[Nome]]) -> 0 | C30: =SUMIFS(Saída!$F$4:$F$38,Saída!E$4:E$38,Tabela1[[#This Row],[Nome]]) -> 0
A31: =IFERROR(INDEX(Nota_Fiscal!$G$4:$G$2504,MATCH(0,COUNTIF($A$3:A30,Nota_Fiscal!$G$4:$G$2504),0)),"") ->  | B31: =SUMIFS(Nota_Fiscal!I31:I2531,Nota_Fiscal!G31:G2531,Tabela1[[#This Row],[Nome]]) -> 0 | C31: =SUMIFS(Saída!$F$4:$F$38,Saída!E$4:E$38,Tabela1[[#This Row],[Nome]]) -> 0
A32: =IFERROR(INDEX(Nota_Fiscal!$G$4:$G$2504,MATCH(0,COUNTIF($A$3:A31,Nota_Fiscal!$G$4:$G$2504),0)),"") ->  | B32: =SUMIFS(Nota_Fiscal!I32:I2532,Nota_Fiscal!G32:G2532,Tabela1[[#This Row],[Nome]]) -> 0 | C32: =SUMIFS(Saída!$F$4:$F$38,Saída!E$4:E$38,Tabela1[[#This Row],[Nome]]) -> 0
A33: =IFERROR(INDEX(Nota_Fiscal!$G$4:$G$2504,MATCH(0,COUNTIF($A$3:A32,Nota_Fiscal!$G$4:$G$2504),0)),"") ->  | B33: =SUMIFS(Nota_Fiscal!I33:I2533,Nota_Fiscal!G33:G2533,Tabela1[[#This Row],[Nome]]) -> 0 | C33: =SUMIFS(Saída!$F$4:$F$38,Saída!E$4:E$38,Tabela1[[#This Row],[Nome]]) -> 0
A34: =IFERROR(INDEX(Nota_Fiscal!$G$4:$G$2504,MATCH(0,COUNTIF($A$3:A33,Nota_Fiscal!$G$4:$G$2504),0)),"") ->  | B34: =SUMIFS(Nota_Fiscal!I34:I2534,Nota_Fiscal!G34:G2534,Tabela1[[#This Row],[Nome]]) -> 0 | C34: =SUMIFS(Saída!$F$4:$F$38,Saída!E$4:E$38,Tabela1[[#This Row],[Nome]]) -> 0
A35: =IFERROR(INDEX(Nota_Fiscal!$G$4:$G$2504,MATCH(0,COUNTIF($A$3:A34,Nota_Fiscal!$G$4:$G$2504),0)),"") ->  | B35: =SUMIFS(Nota_Fiscal!I35:I2535,Nota_Fiscal!G35:G2535,Tabela1[[#This Row],[Nome]]) -> 0 | C35: =SUMIFS(Saída!$F$4:$F$38,Saída!E$4:E$38,Tabela1[[#This Row],[Nome]]) -> 0
A36: =IFERROR(INDEX(Nota_Fiscal!$G$4:$G$2504,MATCH(0,COUNTIF($A$3:A35,Nota_Fiscal!$G$4:$G$2504),0)),"") ->  | B36: =SUMIFS(Nota_Fiscal!I36:I2536,Nota_Fiscal!G36:G2536,Tabela1[[#This Row],[Nome]]) -> 0 | C36: =SUMIFS(Saída!$F$4:$F$38,Saída!E$4:E$38,Tabela1[[#This Row],[Nome]]) -> 0
A37: =IFERROR(INDEX(Nota_Fiscal!$G$4:$G$2504,MATCH(0,COUNTIF($A$3:A36,Nota_Fiscal!$G$4:$G$2504),0)),"") ->  | B37: =SUMIFS(Nota_Fiscal!I37:I2537,Nota_Fiscal!G37:G2537,Tabela1[[#This Row],[Nome]]) -> 0 | C37: =SUMIFS(Saída!$F$4:$F$38,Saída!E$4:E$38,Tabela1[[#This Row],[Nome]]) -> 0
A38: =IFERROR(INDEX(Nota_Fiscal!$G$4:$G$2504,MATCH(0,COUNTIF($A$3:A37,Nota_Fiscal!$G$4:$G$2504),0)),"") ->  | B38: =SUMIFS(Nota_Fiscal!I38:I2538,Nota_Fiscal!G38:G2538,Tabela1[[#This Row],[Nome]]) -> 0 | C38: =SUMIFS(Saída!$F$4:$F$38,Saída!E$4:E$38,Tabela1[[#This Row],[Nome]]) -> 0
A39: =IFERROR(INDEX(Nota_Fiscal!$G$4:$G$2504,MATCH(0,COUNTIF($A$3:A38,Nota_Fiscal!$G$4:$G$2504),0)),"") ->  | B39: =SUMIFS(Nota_Fiscal!I39:I2539,Nota_Fiscal!G39:G2539,Tabela1[[#This Row],[Nome]]) -> 0 | C39: =SUMIFS(Saída!$F$4:$F$38,Saída!E$4:E$38,Tabela1[[#This Row],[Nome]]) -> 0
A40: =IFERROR(INDEX(Nota_Fiscal!$G$4:$G$2504,MATCH(0,COUNTIF($A$3:A39,Nota_Fiscal!$G$4:$G$2504),0)),"") ->  | B40: =SUMIFS(Nota_Fiscal!I40:I2540,Nota_Fiscal!G40:G2540,Tabela1[[#This Row],[Nome]]) -> 0 | C40: =SUMIFS(Saída!$F$4:$F$38,Saída!E$4:E$38,Tabela1[[#This Row],[Nome]]) -> 0
A41: =IFERROR(INDEX(Nota_Fiscal!$G$4:$G$2504,MATCH(0,COUNTIF($A$3:A40,Nota_Fiscal!$G$4:$G$2504),0)),"") ->  | B41: =SUMIFS(Nota_Fiscal!I41:I2541,Nota_Fiscal!G41:G2541,Tabela1[[#This Row],[Nome]]) -> 0 | C41: =SUMIFS(Saída!$F$4:$F$38,Saída!E$4:E$38,Tabela1[[#This Row],[Nome]]) -> 0
A42: =IFERROR(INDEX(Nota_Fiscal!$G$4:$G$2504,MATCH(0,COUNTIF($A$3:A41,Nota_Fiscal!$G$4:$G$2504),0)),"") ->  | B42: =SUMIFS(Nota_Fiscal!I42:I2542,Nota_Fiscal!G42:G2542,Tabela1[[#This Row],[Nome]]) -> 0 | C42: =SUMIFS(Saída!$F$4:$F$38,Saída!E$4:E$38,Tabela1[[#This Row],[Nome]]) -> 0
A43: =IFERROR(INDEX(Nota_Fiscal!$G$4:$G$2504,MATCH(0,COUNTIF($A$3:A42,Nota_Fiscal!$G$4:$G$2504),0)),"") ->  | B43: =SUMIFS(Nota_Fiscal!I43:I2543,Nota_Fiscal!G43:G2543,Tabela1[[#This Row],[Nome]]) -> 0 | C43: =SUMIFS(Saída!$F$4:$F$38,Saída!E$4:E$38,Tabela1[[#This Row],[Nome]]) -> 0
A44: =IFERROR(INDEX(Nota_Fiscal!$G$4:$G$2504,MATCH(0,COUNTIF($A$3:A43,Nota_Fiscal!$G$4:$G$2504),0)),"") ->  | B44: =SUMIFS(Nota_Fiscal!I44:I2544,Nota_Fiscal!G44:G2544,Tabela1[[#This Row],[Nome]]) -> 0 | C44: =SUMIFS(Saída!$F$4:$F$38,Saída!E$4:E$38,Tabela1[[#This Row],[Nome]]) -> 0
A45: =IFERROR(INDEX(Nota_Fiscal!$G$4:$G$2504,MATCH(0,COUNTIF($A$3:A44,Nota_Fiscal!$G$4:$G$2504),0)),"") ->  | B45: =SUMIFS(Nota_Fiscal!I45:I2545,Nota_Fiscal!G45:G2545,Tabela1[[#This Row],[Nome]]) -> 0 | C45: =SUMIFS(Saída!$F$4:$F$38,Saída!E$4:E$38,Tabela1[[#This Row],[Nome]]) -> 0
A46: =IFERROR(INDEX(Nota_Fiscal!$G$4:$G$2504,MATCH(0,COUNTIF($A$3:A45,Nota_Fiscal!$G$4:$G$2504),0)),"") ->  | B46: =SUMIFS(Nota_Fiscal!I46:I2546,Nota_Fiscal!G46:G2546,Tabela1[[#This Row],[Nome]]) -> 0 | C46: =SUMIFS(Saída!$F$4:$F$38,Saída!E$4:E$38,Tabela1[[#This Row],[Nome]]) -> 0
A47: =IFERROR(INDEX(Nota_Fiscal!$G$4:$G$2504,MATCH(0,COUNTIF($A$3:A46,Nota_Fiscal!$G$4:$G$2504),0)),"") ->  | B47: =SUMIFS(Nota_Fiscal!I47:I2547,Nota_Fiscal!G47:G2547,Tabela1[[#This Row],[Nome]]) -> 0 | C47: =SUMIFS(Saída!$F$4:$F$38,Saída!E$4:E$38,Tabela1[[#This Row],[Nome]]) -> 0
A48: =IFERROR(INDEX(Nota_Fiscal!$G$4:$G$2504,MATCH(0,COUNTIF($A$3:A47,Nota_Fiscal!$G$4:$G$2504),0)),"") ->  | B48: =SUMIFS(Nota_Fiscal!I48:I2548,Nota_Fiscal!G48:G2548,Tabela1[[#This Row],[Nome]]) -> 0 | C48: =SUMIFS(Saída!$F$4:$F$38,Saída!E$4:E$38,Tabela1[[#This Row],[Nome]]) -> 0
A49: =IFERROR(INDEX(Nota_Fiscal!$G$4:$G$2504,MATCH(0,COUNTIF($A$3:A48,Nota_Fiscal!$G$4:$G$2504),0)),"") ->  | B49: =SUMIFS(Nota_Fiscal!I49:I2549,Nota_Fiscal!G49:G2549,Tabela1[[#This Row],[Nome]]) -> 0 | C49: =SUMIFS(Saída!$F$4:$F$38,Saída!E$4:E$38,Tabela1[[#This Row],[Nome]]) -> 0
A50: =IFERROR(INDEX(Nota_Fiscal!$G$4:$G$2504,MATCH(0,COUNTIF($A$3:A49,Nota_Fiscal!$G$4:$G$2504),0)),"") ->  | B50: =SUMIFS(Nota_Fiscal!I50:I2550,Nota_Fiscal!G50:G2550,Tabela1[[#This Row],[Nome]]) -> 0 | C50: =SUMIFS(Saída!$F$4:$F$38,Saída!E$4:E$38,Tabela1[[#This Row],[Nome]]) -> 0
A51: =IFERROR(INDEX(Nota_Fiscal!$G$4:$G$2504,MATCH(0,COUNTIF($A$3:A50,Nota_Fiscal!$G$4:$G$2504),0)),"") ->  | B51: =SUMIFS(Nota_Fiscal!I51:I2551,Nota_Fiscal!G51:G2551,Tabela1[[#This Row],[Nome]]) -> 0 | C51: =SUMIFS(Saída!$F$4:$F$38,Saída!E$4:E$38,Tabela1[[#This Row],[Nome]]) -> 0
A52: =IFERROR(INDEX(Nota_Fiscal!$G$4:$G$2504,MATCH(0,COUNTIF($A$3:A51,Nota_Fiscal!$G$4:$G$2504),0)),"") ->  | B52: =SUMIFS(Nota_Fiscal!I52:I2552,Nota_Fiscal!G52:G2552,Tabela1[[#This Row],[Nome]]) -> 0 | C52: =SUMIFS(Saída!$F$4:$F$38,Saída!E$4:E$38,Tabela1[[#This Row],[Nome]]) -> 0
A53: =IFERROR(INDEX(Nota_Fiscal!$G$4:$G$2504,MATCH(0,COUNTIF($A$3:A52,Nota_Fiscal!$G$4:$G$2504),0)),"") ->  | B53: =SUMIFS(Nota_Fiscal!I53:I2553,Nota_Fiscal!G53:G2553,Tabela1[[#This Row],[Nome]]) -> 0 | C53: =SUMIFS(Saída!$F$4:$F$38,Saída!E$4:E$38,Tabela1[[#This Row],[Nome]]) -> 0
A54: =IFERROR(INDEX(Nota_Fiscal!$G$4:$G$2504,MATCH(0,COUNTIF($A$3:A53,Nota_Fiscal!$G$4:$G$2504),0)),"") ->  | B54: =SUMIFS(Nota_Fiscal!I54:I2554,Nota_Fiscal!G54:G2554,Tabela1[[#This Row],[Nome]]) -> 0 | C54: =SUMIFS(Saída!$F$4:$F$38,Saída!E$4:E$38,Tabela1[[#This Row],[Nome]]) -> 0
A55: =IFERROR(INDEX(Nota_Fiscal!$G$4:$G$2504,MATCH(0,COUNTIF($A$3:A54,Nota_Fiscal!$G$4:$G$2504),0)),"") ->  | B55: =SUMIFS(Nota_Fiscal!I55:I2555,Nota_Fiscal!G55:G2555,Tabela1[[#This Row],[Nome]]) -> 0 | C55: =SUMIFS(Saída!$F$4:$F$38,Saída!E$4:E$38,Tabela1[[#This Row],[Nome]]) -> 0
A56: =IFERROR(INDEX(Nota_Fiscal!$G$4:$G$2504,MATCH(0,COUNTIF($A$3:A55,Nota_Fiscal!$G$4:$G$2504),0)),"") ->  | B56: =SUMIFS(Nota_Fiscal!I56:I2556,Nota_Fiscal!G56:G2556,Tabela1[[#This Row],[Nome]]) -> 0 | C56: =SUMIFS(Saída!$F$4:$F$38,Saída!E$4:E$38,Tabela1[[#This Row],[Nome]]) -> 0
A57: =IFERROR(INDEX(Nota_Fiscal!$G$4:$G$2504,MATCH(0,COUNTIF($A$3:A56,Nota_Fiscal!$G$4:$G$2504),0)),"") ->  | B57: =SUMIFS(Nota_Fiscal!I57:I2557,Nota_Fiscal!G57:G2557,Tabela1[[#This Row],[Nome]]) -> 0 | C57: =SUMIFS(Saída!$F$4:$F$38,Saída!E$4:E$38,Tabela1[[#This Row],[Nome]]) -> 0
A58: =IFERROR(INDEX(Nota_Fiscal!$G$4:$G$2504,MATCH(0,COUNTIF($A$3:A57,Nota_Fiscal!$G$4:$G$2504),0)),"") ->  | B58: =SUMIFS(Nota_Fiscal!I58:I2558,Nota_Fiscal!G58:G2558,Tabela1[[#This Row],[Nome]]) -> 0 | C58: =SUMIFS(Saída!$F$4:$F$38,Saída!E$4:E$38,Tabela1[[#This Row],[Nome]]) -> 0
A59: =IFERROR(INDEX(Nota_Fiscal!$G$4:$G$2504,MATCH(0,COUNTIF($A$3:A58,Nota_Fiscal!$G$4:$G$2504),0)),"") ->  | B59: =SUMIFS(Nota_Fiscal!I59:I2559,Nota_Fiscal!G59:G2559,Tabela1[[#This Row],[Nome]]) -> 0 | C59: =SUMIFS(Saída!$F$4:$F$38,Saída!E$4:E$38,Tabela1[[#This Row],[Nome]]) -> 0
A60: =IFERROR(INDEX(Nota_Fiscal!$G$4:$G$2504,MATCH(0,COUNTIF($A$3:A59,Nota_Fiscal!$G$4:$G$2504),0)),"") ->  | B60: =SUMIFS(Nota_Fiscal!I60:I2560,Nota_Fiscal!G60:G2560,Tabela1[[#This Row],[Nome]]) -> 0 | C60: =SUMIFS(Saída!$F$4:$F$38,Saída!E$4:E$38,Tabela1[[#This Row],[Nome]]) -> 0
A61: =IFERROR(INDEX(Nota_Fiscal!$G$4:$G$2504,MATCH(0,COUNTIF($A$3:A60,Nota_Fiscal!$G$4:$G$2504),0)),"") ->  | B61: =SUMIFS(Nota_Fiscal!I61:I2561,Nota_Fiscal!G61:G2561,Tabela1[[#This Row],[Nome]]) -> 0 | C61: =SUMIFS(Saída!$F$4:$F$38,Saída!E$4:E$38,Tabela1[[#This Row],[Nome]]) -> 0
A62: =IFERROR(INDEX(Nota_Fiscal!$G$4:$G$2504,MATCH(0,COUNTIF($A$3:A61,Nota_Fiscal!$G$4:$G$2504),0)),"") ->  | B62: =SUMIFS(Nota_Fiscal!I62:I2562,Nota_Fiscal!G62:G2562,Tabela1[[#This Row],[Nome]]) -> 0 | C62: =SUMIFS(Saída!$F$4:$F$38,Saída!E$4:E$38,Tabela1[[#This Row],[Nome]]) -> 0
A63: =IFERROR(INDEX(Nota_Fiscal!$G$4:$G$2504,MATCH(0,COUNTIF($A$3:A62,Nota_Fiscal!$G$4:$G$2504),0)),"") ->  | B63: =SUMIFS(Nota_Fiscal!I63:I2563,Nota_Fiscal!G63:G2563,Tabela1[[#This Row],[Nome]]) -> 0 | C63: =SUMIFS(Saída!$F$4:$F$38,Saída!E$4:E$38,Tabela1[[#This Row],[Nome]]) -> 0
A64: =IFERROR(INDEX(Nota_Fiscal!$G$4:$G$2504,MATCH(0,COUNTIF($A$3:A63,Nota_Fiscal!$G$4:$G$2504),0)),"") ->  | B64: =SUMIFS(Nota_Fiscal!I64:I2564,Nota_Fiscal!G64:G2564,Tabela1[[#This Row],[Nome]]) -> 0 | C64: =SUMIFS(Saída!$F$4:$F$38,Saída!E$4:E$38,Tabela1[[#This Row],[Nome]]) -> 0
A65: =IFERROR(INDEX(Nota_Fiscal!$G$4:$G$2504,MATCH(0,COUNTIF($A$3:A64,Nota_Fiscal!$G$4:$G$2504),0)),"") ->  | B65: =SUMIFS(Nota_Fiscal!I65:I2565,Nota_Fiscal!G65:G2565,Tabela1[[#This Row],[Nome]]) -> 0 | C65: =SUMIFS(Saída!$F$4:$F$38,Saída!E$4:E$38,Tabela1[[#This Row],[Nome]]) -> 0
A66: =IFERROR(INDEX(Nota_Fiscal!$G$4:$G$2504,MATCH(0,COUNTIF($A$3:A65,Nota_Fiscal!$G$4:$G$2504),0)),"") ->  | B66: =SUMIFS(Nota_Fiscal!I66:I2566,Nota_Fiscal!G66:G2566,Tabela1[[#This Row],[Nome]]) -> 0 | C66: =SUMIFS(Saída!$F$4:$F$38,Saída!E$4:E$38,Tabela1[[#This Row],[Nome]]) -> 0
A67: =IFERROR(INDEX(Nota_Fiscal!$G$4:$G$2504,MATCH(0,COUNTIF($A$3:A66,Nota_Fiscal!$G$4:$G$2504),0)),"") ->  | B67: =SUMIFS(Nota_Fiscal!I67:I2567,Nota_Fiscal!G67:G2567,Tabela1[[#This Row],[Nome]]) -> 0 | C67: =SUMIFS(Saída!$F$4:$F$38,Saída!E$4:E$38,Tabela1[[#This Row],[Nome]]) -> 0
A68: =IFERROR(INDEX(Nota_Fiscal!$G$4:$G$2504,MATCH(0,COUNTIF($A$3:A67,Nota_Fiscal!$G$4:$G$2504),0)),"") ->  | B68: =SUMIFS(Nota_Fiscal!I68:I2568,Nota_Fiscal!G68:G2568,Tabela1[[#This Row],[Nome]]) -> 0 | C68: =SUMIFS(Saída!$F$4:$F$38,Saída!E$4:E$38,Tabela1[[#This Row],[Nome]]) -> 0
A69: =IFERROR(INDEX(Nota_Fiscal!$G$4:$G$2504,MATCH(0,COUNTIF($A$3:A68,Nota_Fiscal!$G$4:$G$2504),0)),"") ->  | B69: =SUMIFS(Nota_Fiscal!I69:I2569,Nota_Fiscal!G69:G2569,Tabela1[[#This Row],[Nome]]) -> 0 | C69: =SUMIFS(Saída!$F$4:$F$38,Saída!E$4:E$38,Tabela1[[#This Row],[Nome]]) -> 0
A70: =IFERROR(INDEX(Nota_Fiscal!$G$4:$G$2504,MATCH(0,COUNTIF($A$3:A69,Nota_Fiscal!$G$4:$G$2504),0)),"") ->  | B70: =SUMIFS(Nota_Fiscal!I70:I2570,Nota_Fiscal!G70:G2570,Tabela1[[#This Row],[Nome]]) -> 0 | C70: =SUMIFS(Saída!$F$4:$F$38,Saída!E$4:E$38,Tabela1[[#This Row],[Nome]]) -> 0
A71: =IFERROR(INDEX(Nota_Fiscal!$G$4:$G$2504,MATCH(0,COUNTIF($A$3:A70,Nota_Fiscal!$G$4:$G$2504),0)),"") ->  | B71: =SUMIFS(Nota_Fiscal!I71:I2571,Nota_Fiscal!G71:G2571,Tabela1[[#This Row],[Nome]]) -> 0 | C71: =SUMIFS(Saída!$F$4:$F$38,Saída!E$4:E$38,Tabela1[[#This Row],[Nome]]) -> 0
A72: =IFERROR(INDEX(Nota_Fiscal!$G$4:$G$2504,MATCH(0,COUNTIF($A$3:A71,Nota_Fiscal!$G$4:$G$2504),0)),"") ->  | B72: =SUMIFS(Nota_Fiscal!I72:I2572,Nota_Fiscal!G72:G2572,Tabela1[[#This Row],[Nome]]) -> 0 | C72: =SUMIFS(Saída!$F$4:$F$38,Saída!E$4:E$38,Tabela1[[#This Row],[Nome]]) -> 0
A73: =IFERROR(INDEX(Nota_Fiscal!$G$4:$G$2504,MATCH(0,COUNTIF($A$3:A72,Nota_Fiscal!$G$4:$G$2504),0)),"") ->  | B73: =SUMIFS(Nota_Fiscal!I73:I2573,Nota_Fiscal!G73:G2573,Tabela1[[#This Row],[Nome]]) -> 0 | C73: =SUMIFS(Saída!$F$4:$F$38,Saída!E$4:E$38,Tabela1[[#This Row],[Nome]]) -> 0
A74: =IFERROR(INDEX(Nota_Fiscal!$G$4:$G$2504,MATCH(0,COUNTIF($A$3:A73,Nota_Fiscal!$G$4:$G$2504),0)),"") ->  | B74: =SUMIFS(Nota_Fiscal!I74:I2574,Nota_Fiscal!G74:G2574,Tabela1[[#This Row],[Nome]]) -> 0 | C74: =SUMIFS(Saída!$F$4:$F$38,Saída!E$4:E$38,Tabela1[[#This Row],[Nome]]) -> 0
A75: =IFERROR(INDEX(Nota_Fiscal!$G$4:$G$2504,MATCH(0,COUNTIF($A$3:A74,Nota_Fiscal!$G$4:$G$2504),0)),"") ->  | B75: =SUMIFS(Nota_Fiscal!I75:I2575,Nota_Fiscal!G75:G2575,Tabela1[[#This Row],[Nome]]) -> 0 | C75: =SUMIFS(Saída!$F$4:$F$38,Saída!E$4:E$38,Tabela1[[#This Row],[Nome]]) -> 0
A76: =IFERROR(INDEX(Nota_Fiscal!$G$4:$G$2504,MATCH(0,COUNTIF($A$3:A75,Nota_Fiscal!$G$4:$G$2504),0)),"") ->  | B76: =SUMIFS(Nota_Fiscal!I76:I2576,Nota_Fiscal!G76:G2576,Tabela1[[#This Row],[Nome]]) -> 0 | C76: =SUMIFS(Saída!$F$4:$F$38,Saída!E$4:E$38,Tabela1[[#This Row],[Nome]]) -> 0
A77: =IFERROR(INDEX(Nota_Fiscal!$G$4:$G$2504,MATCH(0,COUNTIF($A$3:A76,Nota_Fiscal!$G$4:$G$2504),0)),"") ->  | B77: =SUMIFS(Nota_Fiscal!I77:I2577,Nota_Fiscal!G77:G2577,Tabela1[[#This Row],[Nome]]) -> 0 | C77: =SUMIFS(Saída!$F$4:$F$38,Saída!E$4:E$38,Tabela1[[#This Row],[Nome]]) -> 0
A78: =IFERROR(INDEX(Nota_Fiscal!$G$4:$G$2504,MATCH(0,COUNTIF($A$3:A77,Nota_Fiscal!$G$4:$G$2504),0)),"") ->  | B78: =SUMIFS(Nota_Fiscal!I78:I2578,Nota_Fiscal!G78:G2578,Tabela1[[#This Row],[Nome]]) -> 0 | C78: =SUMIFS(Saída!$F$4:$F$38,Saída!E$4:E$38,Tabela1[[#This Row],[Nome]]) -> 0
A79: =IFERROR(INDEX(Nota_Fiscal!$G$4:$G$2504,MATCH(0,COUNTIF($A$3:A78,Nota_Fiscal!$G$4:$G$2504),0)),"") ->  | B79: =SUMIFS(Nota_Fiscal!I79:I2579,Nota_Fiscal!G79:G2579,Tabela1[[#This Row],[Nome]]) -> 0 | C79: =SUMIFS(Saída!$F$4:$F$38,Saída!E$4:E$38,Tabela1[[#This Row],[Nome]]) -> 0
A80: =IFERROR(INDEX(Nota_Fiscal!$G$4:$G$2504,MATCH(0,COUNTIF($A$3:A79,Nota_Fiscal!$G$4:$G$2504),0)),"") ->  | B80: =SUMIFS(Nota_Fiscal!I80:I2580,Nota_Fiscal!G80:G2580,Tabela1[[#This Row],[Nome]]) -> 0 | C80: =SUMIFS(Saída!$F$4:$F$38,Saída!E$4:E$38,Tabela1[[#This Row],[Nome]]) -> 0
A81: =IFERROR(INDEX(Nota_Fiscal!$G$4:$G$2504,MATCH(0,COUNTIF($A$3:A80,Nota_Fiscal!$G$4:$G$2504),0)),"") ->  | B81: =SUMIFS(Nota_Fiscal!I81:I2581,Nota_Fiscal!G81:G2581,Tabela1[[#This Row],[Nome]]) -> 0 | C81: =SUMIFS(Saída!$F$4:$F$38,Saída!E$4:E$38,Tabela1[[#This Row],[Nome]]) -> 0
A82: =IFERROR(INDEX(Nota_Fiscal!$G$4:$G$2504,MATCH(0,COUNTIF($A$3:A81,Nota_Fiscal!$G$4:$G$2504),0)),"") ->  | B82: =SUMIFS(Nota_Fiscal!I82:I2582,Nota_Fiscal!G82:G2582,Tabela1[[#This Row],[Nome]]) -> 0 | C82: =SUMIFS(Saída!$F$4:$F$38,Saída!E$4:E$38,Tabela1[[#This Row],[Nome]]) -> 0
A83: =IFERROR(INDEX(Nota_Fiscal!$G$4:$G$2504,MATCH(0,COUNTIF($A$3:A82,Nota_Fiscal!$G$4:$G$2504),0)),"") ->  | B83: =SUMIFS(Nota_Fiscal!I83:I2583,Nota_Fiscal!G83:G2583,Tabela1[[#This Row],[Nome]]) -> 0 | C83: =SUMIFS(Saída!$F$4:$F$38,Saída!E$4:E$38,Tabela1[[#This Row],[Nome]]) -> 0
A84: =IFERROR(INDEX(Nota_Fiscal!$G$4:$G$2504,MATCH(0,COUNTIF($A$3:A83,Nota_Fiscal!$G$4:$G$2504),0)),"") ->  | B84: =SUMIFS(Nota_Fiscal!I84:I2584,Nota_Fiscal!G84:G2584,Tabela1[[#This Row],[Nome]]) -> 0 | C84: =SUMIFS(Saída!$F$4:$F$38,Saída!E$4:E$38,Tabela1[[#This Row],[Nome]]) -> 0
A85: =IFERROR(INDEX(Nota_Fiscal!$G$4:$G$2504,MATCH(0,COUNTIF($A$3:A84,Nota_Fiscal!$G$4:$G$2504),0)),"") ->  | B85: =SUMIFS(Nota_Fiscal!I85:I2585,Nota_Fiscal!G85:G2585,Tabela1[[#This Row],[Nome]]) -> 0 | C85: =SUMIFS(Saída!$F$4:$F$38,Saída!E$4:E$38,Tabela1[[#This Row],[Nome]]) -> 0
A86: =IFERROR(INDEX(Nota_Fiscal!$G$4:$G$2504,MATCH(0,COUNTIF($A$3:A85,Nota_Fiscal!$G$4:$G$2504),0)),"") ->  | B86: =SUMIFS(Nota_Fiscal!I86:I2586,Nota_Fiscal!G86:G2586,Tabela1[[#This Row],[Nome]]) -> 0 | C86: =SUMIFS(Saída!$F$4:$F$38,Saída!E$4:E$38,Tabela1[[#This Row],[Nome]]) -> 0
A87: =IFERROR(INDEX(Nota_Fiscal!$G$4:$G$2504,MATCH(0,COUNTIF($A$3:A86,Nota_Fiscal!$G$4:$G$2504),0)),"") ->  | B87: =SUMIFS(Nota_Fiscal!I87:I2587,Nota_Fiscal!G87:G2587,Tabela1[[#This Row],[Nome]]) -> 0 | C87: =SUMIFS(Saída!$F$4:$F$38,Saída!E$4:E$38,Tabela1[[#This Row],[Nome]]) -> 0
A88: =IFERROR(INDEX(Nota_Fiscal!$G$4:$G$2504,MATCH(0,COUNTIF($A$3:A87,Nota_Fiscal!$G$4:$G$2504),0)),"") ->  | B88: =SUMIFS(Nota_Fiscal!I88:I2588,Nota_Fiscal!G88:G2588,Tabela1[[#This Row],[Nome]]) -> 0 | C88: =SUMIFS(Saída!$F$4:$F$38,Saída!E$4:E$38,Tabela1[[#This Row],[Nome]]) -> 0
A89: =IFERROR(INDEX(Nota_Fiscal!$G$4:$G$2504,MATCH(0,COUNTIF($A$3:A88,Nota_Fiscal!$G$4:$G$2504),0)),"") ->  | B89: =SUMIFS(Nota_Fiscal!I89:I2589,Nota_Fiscal!G89:G2589,Tabela1[[#This Row],[Nome]]) -> 0 | C89: =SUMIFS(Saída!$F$4:$F$38,Saída!E$4:E$38,Tabela1[[#This Row],[Nome]]) -> 0
A90: =IFERROR(INDEX(Nota_Fiscal!$G$4:$G$2504,MATCH(0,COUNTIF($A$3:A89,Nota_Fiscal!$G$4:$G$2504),0)),"") ->  | B90: =SUMIFS(Nota_Fiscal!I90:I2590,Nota_Fiscal!G90:G2590,Tabela1[[#This Row],[Nome]]) -> 0 | C90: =SUMIFS(Saída!$F$4:$F$38,Saída!E$4:E$38,Tabela1[[#This Row],[Nome]]) -> 0
A91: =IFERROR(INDEX(Nota_Fiscal!$G$4:$G$2504,MATCH(0,COUNTIF($A$3:A90,Nota_Fiscal!$G$4:$G$2504),0)),"") ->  | B91: =SUMIFS(Nota_Fiscal!I91:I2591,Nota_Fiscal!G91:G2591,Tabela1[[#This Row],[Nome]]) -> 0 | C91: =SUMIFS(Saída!$F$4:$F$38,Saída!E$4:E$38,Tabela1[[#This Row],[Nome]]) -> 0
A92: =IFERROR(INDEX(Nota_Fiscal!$G$4:$G$2504,MATCH(0,COUNTIF($A$3:A91,Nota_Fiscal!$G$4:$G$2504),0)),"") ->  | B92: =SUMIFS(Nota_Fiscal!I92:I2592,Nota_Fiscal!G92:G2592,Tabela1[[#This Row],[Nome]]) -> 0 | C92: =SUMIFS(Saída!$F$4:$F$38,Saída!E$4:E$38,Tabela1[[#This Row],[Nome]]) -> 0
A93: =IFERROR(INDEX(Nota_Fiscal!$G$4:$G$2504,MATCH(0,COUNTIF($A$3:A92,Nota_Fiscal!$G$4:$G$2504),0)),"") ->  | B93: =SUMIFS(Nota_Fiscal!I93:I2593,Nota_Fiscal!G93:G2593,Tabela1[[#This Row],[Nome]]) -> 0 | C93: =SUMIFS(Saída!$F$4:$F$38,Saída!E$4:E$38,Tabela1[[#This Row],[Nome]]) -> 0
A94: =IFERROR(INDEX(Nota_Fiscal!$G$4:$G$2504,MATCH(0,COUNTIF($A$3:A93,Nota_Fiscal!$G$4:$G$2504),0)),"") ->  | B94: =SUMIFS(Nota_Fiscal!I94:I2594,Nota_Fiscal!G94:G2594,Tabela1[[#This Row],[Nome]]) -> 0 | C94: =SUMIFS(Saída!$F$4:$F$38,Saída!E$4:E$38,Tabela1[[#This Row],[Nome]]) -> 0
A95: =IFERROR(INDEX(Nota_Fiscal!$G$4:$G$2504,MATCH(0,COUNTIF($A$3:A94,Nota_Fiscal!$G$4:$G$2504),0)),"") ->  | B95: =SUMIFS(Nota_Fiscal!I95:I2595,Nota_Fiscal!G95:G2595,Tabela1[[#This Row],[Nome]]) -> 0 | C95: =SUMIFS(Saída!$F$4:$F$38,Saída!E$4:E$38,Tabela1[[#This Row],[Nome]]) -> 0
A96: =IFERROR(INDEX(Nota_Fiscal!$G$4:$G$2504,MATCH(0,COUNTIF($A$3:A95,Nota_Fiscal!$G$4:$G$2504),0)),"") ->  | B96: =SUMIFS(Nota_Fiscal!I96:I2596,Nota_Fiscal!G96:G2596,Tabela1[[#This Row],[Nome]]) -> 0 | C96: =SUMIFS(Saída!$F$4:$F$38,Saída!E$4:E$38,Tabela1[[#This Row],[Nome]]) -> 0
A97: =IFERROR(INDEX(Nota_Fiscal!$G$4:$G$2504,MATCH(0,COUNTIF($A$3:A96,Nota_Fiscal!$G$4:$G$2504),0)),"") ->  | B97: =SUMIFS(Nota_Fiscal!I97:I2597,Nota_Fiscal!G97:G2597,Tabela1[[#This Row],[Nome]]) -> 0 | C97: =SUMIFS(Saída!$F$4:$F$38,Saída!E$4:E$38,Tabela1[[#This Row],[Nome]]) -> 0
A98: =IFERROR(INDEX(Nota_Fiscal!$G$4:$G$2504,MATCH(0,COUNTIF($A$3:A97,Nota_Fiscal!$G$4:$G$2504),0)),"") ->  | B98: =SUMIFS(Nota_Fiscal!I98:I2598,Nota_Fiscal!G98:G2598,Tabela1[[#This Row],[Nome]]) -> 0 | C98: =SUMIFS(Saída!$F$4:$F$38,Saída!E$4:E$38,Tabela1[[#This Row],[Nome]]) -> 0
A99: =IFERROR(INDEX(Nota_Fiscal!$G$4:$G$2504,MATCH(0,COUNTIF($A$3:A98,Nota_Fiscal!$G$4:$G$2504),0)),"") ->  | B99: =SUMIFS(Nota_Fiscal!I99:I2599,Nota_Fiscal!G99:G2599,Tabela1[[#This Row],[Nome]]) -> 0 | C99: =SUMIFS(Saída!$F$4:$F$38,Saída!E$4:E$38,Tabela1[[#This Row],[Nome]]) -> 0
A100: =IFERROR(INDEX(Nota_Fiscal!$G$4:$G$2504,MATCH(0,COUNTIF($A$3:A99,Nota_Fiscal!$G$4:$G$2504),0)),"") ->  | B100: =SUMIFS(Nota_Fiscal!I100:I2600,Nota_Fiscal!G100:G2600,Tabela1[[#This Row],[Nome]]) -> 0 | C100: =SUMIFS(Saída!$F$4:$F$38,Saída!E$4:E$38,Tabela1[[#This Row],[Nome]]) -> 0
A101: =IFERROR(INDEX(Nota_Fiscal!$G$4:$G$2504,MATCH(0,COUNTIF($A$3:A100,Nota_Fiscal!$G$4:$G$2504),0)),"") ->  | B101: =SUMIFS(Nota_Fiscal!I101:I2601,Nota_Fiscal!G101:G2601,Tabela1[[#This Row],[Nome]]) -> 0 | C101: =SUMIFS(Saída!$F$4:$F$38,Saída!E$4:E$38,Tabela1[[#This Row],[Nome]]) -> 0
A102: =IFERROR(INDEX(Nota_Fiscal!$G$4:$G$2504,MATCH(0,COUNTIF($A$3:A101,Nota_Fiscal!$G$4:$G$2504),0)),"") ->  | B102: =SUMIFS(Nota_Fiscal!I102:I2602,Nota_Fiscal!G102:G2602,Tabela1[[#This Row],[Nome]]) -> 0 | C102: =SUMIFS(Saída!$F$4:$F$38,Saída!E$4:E$38,Tabela1[[#This Row],[Nome]]) -> 0
A103: =IFERROR(INDEX(Nota_Fiscal!$G$4:$G$2504,MATCH(0,COUNTIF($A$3:A102,Nota_Fiscal!$G$4:$G$2504),0)),"") ->  | B103: =SUMIFS(Nota_Fiscal!I103:I2603,Nota_Fiscal!G103:G2603,Tabela1[[#This Row],[Nome]]) -> 0 | C103: =SUMIFS(Saída!$F$4:$F$38,Saída!E$4:E$38,Tabela1[[#This Row],[Nome]]) -> 0
A104: =IFERROR(INDEX(Nota_Fiscal!$G$4:$G$2504,MATCH(0,COUNTIF($A$3:A103,Nota_Fiscal!$G$4:$G$2504),0)),"") ->  | B104: =SUMIFS(Nota_Fiscal!I104:I2604,Nota_Fiscal!G104:G2604,Tabela1[[#This Row],[Nome]]) -> 0 | C104: =SUMIFS(Saída!$F$4:$F$38,Saída!E$4:E$38,Tabela1[[#This Row],[Nome]]) -> 0
A105: =IFERROR(INDEX(Nota_Fiscal!$G$4:$G$2504,MATCH(0,COUNTIF($A$3:A104,Nota_Fiscal!$G$4:$G$2504),0)),"") ->  | B105: =SUMIFS(Nota_Fiscal!I105:I2605,Nota_Fiscal!G105:G2605,Tabela1[[#This Row],[Nome]]) -> 0 | C105: =SUMIFS(Saída!$F$4:$F$38,Saída!E$4:E$38,Tabela1[[#This Row],[Nome]]) -> 0
A106: =IFERROR(INDEX(Nota_Fiscal!$G$4:$G$2504,MATCH(0,COUNTIF($A$3:A105,Nota_Fiscal!$G$4:$G$2504),0)),"") ->  | B106: =SUMIFS(Nota_Fiscal!I106:I2606,Nota_Fiscal!G106:G2606,Tabela1[[#This Row],[Nome]]) -> 0 | C106: =SUMIFS(Saída!$F$4:$F$38,Saída!E$4:E$38,Tabela1[[#This Row],[Nome]]) -> 0
A107: =IFERROR(INDEX(Nota_Fiscal!$G$4:$G$2504,MATCH(0,COUNTIF($A$3:A106,Nota_Fiscal!$G$4:$G$2504),0)),"") ->  | B107: =SUMIFS(Nota_Fiscal!I107:I2607,Nota_Fiscal!G107:G2607,Tabela1[[#This Row],[Nome]]) -> 0 | C107: =SUMIFS(Saída!$F$4:$F$38,Saída!E$4:E$38,Tabela1[[#This Row],[Nome]]) -> 0
A108: =IFERROR(INDEX(Nota_Fiscal!$G$4:$G$2504,MATCH(0,COUNTIF($A$3:A107,Nota_Fiscal!$G$4:$G$2504),0)),"") ->  | B108: =SUMIFS(Nota_Fiscal!I108:I2608,Nota_Fiscal!G108:G2608,Tabela1[[#This Row],[Nome]]) -> 0 | C108: =SUMIFS(Saída!$F$4:$F$38,Saída!E$4:E$38,Tabela1[[#This Row],[Nome]]) -> 0
A109: =IFERROR(INDEX(Nota_Fiscal!$G$4:$G$2504,MATCH(0,COUNTIF($A$3:A108,Nota_Fiscal!$G$4:$G$2504),0)),"") ->  | B109: =SUMIFS(Nota_Fiscal!I109:I2609,Nota_Fiscal!G109:G2609,Tabela1[[#This Row],[Nome]]) -> 0 | C109: =SUMIFS(Saída!$F$4:$F$38,Saída!E$4:E$38,Tabela1[[#This Row],[Nome]]) -> 0
A110: =IFERROR(INDEX(Nota_Fiscal!$G$4:$G$2504,MATCH(0,COUNTIF($A$3:A109,Nota_Fiscal!$G$4:$G$2504),0)),"") ->  | B110: =SUMIFS(Nota_Fiscal!I110:I2610,Nota_Fiscal!G110:G2610,Tabela1[[#This Row],[Nome]]) -> 0 | C110: =SUMIFS(Saída!$F$4:$F$38,Saída!E$4:E$38,Tabela1[[#This Row],[Nome]]) -> 0
A111: =IFERROR(INDEX(Nota_Fiscal!$G$4:$G$2504,MATCH(0,COUNTIF($A$3:A110,Nota_Fiscal!$G$4:$G$2504),0)),"") ->  | B111: =SUMIFS(Nota_Fiscal!I111:I2611,Nota_Fiscal!G111:G2611,Tabela1[[#This Row],[Nome]]) -> 0 | C111: =SUMIFS(Saída!$F$4:$F$38,Saída!E$4:E$38,Tabela1[[#This Row],[Nome]]) -> 0
A112: =IFERROR(INDEX(Nota_Fiscal!$G$4:$G$2504,MATCH(0,COUNTIF($A$3:A111,Nota_Fiscal!$G$4:$G$2504),0)),"") ->  | B112: =SUMIFS(Nota_Fiscal!I112:I2612,Nota_Fiscal!G112:G2612,Tabela1[[#This Row],[Nome]]) -> 0 | C112: =SUMIFS(Saída!$F$4:$F$38,Saída!E$4:E$38,Tabela1[[#This Row],[Nome]]) -> 0
A113: =IFERROR(INDEX(Nota_Fiscal!$G$4:$G$2504,MATCH(0,COUNTIF($A$3:A112,Nota_Fiscal!$G$4:$G$2504),0)),"") ->  | B113: =SUMIFS(Nota_Fiscal!I113:I2613,Nota_Fiscal!G113:G2613,Tabela1[[#This Row],[Nome]]) -> 0 | C113: =SUMIFS(Saída!$F$4:$F$38,Saída!E$4:E$38,Tabela1[[#This Row],[Nome]]) -> 0
A114: =IFERROR(INDEX(Nota_Fiscal!$G$4:$G$2504,MATCH(0,COUNTIF($A$3:A113,Nota_Fiscal!$G$4:$G$2504),0)),"") ->  | B114: =SUMIFS(Nota_Fiscal!I114:I2614,Nota_Fiscal!G114:G2614,Tabela1[[#This Row],[Nome]]) -> 0 | C114: =SUMIFS(Saída!$F$4:$F$38,Saída!E$4:E$38,Tabela1[[#This Row],[Nome]]) -> 0
A115: =IFERROR(INDEX(Nota_Fiscal!$G$4:$G$2504,MATCH(0,COUNTIF($A$3:A114,Nota_Fiscal!$G$4:$G$2504),0)),"") ->  | B115: =SUMIFS(Nota_Fiscal!I115:I2615,Nota_Fiscal!G115:G2615,Tabela1[[#This Row],[Nome]]) -> 0 | C115: =SUMIFS(Saída!$F$4:$F$38,Saída!E$4:E$38,Tabela1[[#This Row],[Nome]]) -> 0
A116: =IFERROR(INDEX(Nota_Fiscal!$G$4:$G$2504,MATCH(0,COUNTIF($A$3:A115,Nota_Fiscal!$G$4:$G$2504),0)),"") ->  | B116: =SUMIFS(Nota_Fiscal!I116:I2616,Nota_Fiscal!G116:G2616,Tabela1[[#This Row],[Nome]]) -> 0 | C116: =SUMIFS(Saída!$F$4:$F$38,Saída!E$4:E$38,Tabela1[[#This Row],[Nome]]) -> 0
A117: =IFERROR(INDEX(Nota_Fiscal!$G$4:$G$2504,MATCH(0,COUNTIF($A$3:A116,Nota_Fiscal!$G$4:$G$2504),0)),"") ->  | B117: =SUMIFS(Nota_Fiscal!I117:I2617,Nota_Fiscal!G117:G2617,Tabela1[[#This Row],[Nome]]) -> 0 | C117: =SUMIFS(Saída!$F$4:$F$38,Saída!E$4:E$38,Tabela1[[#This Row],[Nome]]) -> 0
A118: =IFERROR(INDEX(Nota_Fiscal!$G$4:$G$2504,MATCH(0,COUNTIF($A$3:A117,Nota_Fiscal!$G$4:$G$2504),0)),"") ->  | B118: =SUMIFS(Nota_Fiscal!I118:I2618,Nota_Fiscal!G118:G2618,Tabela1[[#This Row],[Nome]]) -> 0 | C118: =SUMIFS(Saída!$F$4:$F$38,Saída!E$4:E$38,Tabela1[[#This Row],[Nome]]) -> 0
A119: =IFERROR(INDEX(Nota_Fiscal!$G$4:$G$2504,MATCH(0,COUNTIF($A$3:A118,Nota_Fiscal!$G$4:$G$2504),0)),"") ->  | B119: =SUMIFS(Nota_Fiscal!I119:I2619,Nota_Fiscal!G119:G2619,Tabela1[[#This Row],[Nome]]) -> 0 | C119: =SUMIFS(Saída!$F$4:$F$38,Saída!E$4:E$38,Tabela1[[#This Row],[Nome]]) -> 0
A120: =IFERROR(INDEX(Nota_Fiscal!$G$4:$G$2504,MATCH(0,COUNTIF($A$3:A119,Nota_Fiscal!$G$4:$G$2504),0)),"") ->  | B120: =SUMIFS(Nota_Fiscal!I120:I2620,Nota_Fiscal!G120:G2620,Tabela1[[#This Row],[Nome]]) -> 0 | C120: =SUMIFS(Saída!$F$4:$F$38,Saída!E$4:E$38,Tabela1[[#This Row],[Nome]]) -> 0
A121: =IFERROR(INDEX(Nota_Fiscal!$G$4:$G$2504,MATCH(0,COUNTIF($A$3:A120,Nota_Fiscal!$G$4:$G$2504),0)),"") ->  | B121: =SUMIFS(Nota_Fiscal!I121:I2621,Nota_Fiscal!G121:G2621,Tabela1[[#This Row],[Nome]]) -> 0 | C121: =SUMIFS(Saída!$F$4:$F$38,Saída!E$4:E$38,Tabela1[[#This Row],[Nome]]) -> 0
A122: =IFERROR(INDEX(Nota_Fiscal!$G$4:$G$2504,MATCH(0,COUNTIF($A$3:A121,Nota_Fiscal!$G$4:$G$2504),0)),"") ->  | B122: =SUMIFS(Nota_Fiscal!I122:I2622,Nota_Fiscal!G122:G2622,Tabela1[[#This Row],[Nome]]) -> 0 | C122: =SUMIFS(Saída!$F$4:$F$38,Saída!E$4:E$38,Tabela1[[#This Row],[Nome]]) -> 0
A123: =IFERROR(INDEX(Nota_Fiscal!$G$4:$G$2504,MATCH(0,COUNTIF($A$3:A122,Nota_Fiscal!$G$4:$G$2504),0)),"") ->  | B123: =SUMIFS(Nota_Fiscal!I123:I2623,Nota_Fiscal!G123:G2623,Tabela1[[#This Row],[Nome]]) -> 0 | C123: =SUMIFS(Saída!$F$4:$F$38,Saída!E$4:E$38,Tabela1[[#This Row],[Nome]]) -> 0
A124: =IFERROR(INDEX(Nota_Fiscal!$G$4:$G$2504,MATCH(0,COUNTIF($A$3:A123,Nota_Fiscal!$G$4:$G$2504),0)),"") ->  | B124: =SUMIFS(Nota_Fiscal!I124:I2624,Nota_Fiscal!G124:G2624,Tabela1[[#This Row],[Nome]]) -> 0 | C124: =SUMIFS(Saída!$F$4:$F$38,Saída!E$4:E$38,Tabela1[[#This Row],[Nome]]) -> 0
A125: =IFERROR(INDEX(Nota_Fiscal!$G$4:$G$2504,MATCH(0,COUNTIF($A$3:A124,Nota_Fiscal!$G$4:$G$2504),0)),"") ->  | B125: =SUMIFS(Nota_Fiscal!I125:I2625,Nota_Fiscal!G125:G2625,Tabela1[[#This Row],[Nome]]) -> 0 | C125: =SUMIFS(Saída!$F$4:$F$38,Saída!E$4:E$38,Tabela1[[#This Row],[Nome]]) -> 0
A126: =IFERROR(INDEX(Nota_Fiscal!$G$4:$G$2504,MATCH(0,COUNTIF($A$3:A125,Nota_Fiscal!$G$4:$G$2504),0)),"") ->  | B126: =SUMIFS(Nota_Fiscal!I126:I2626,Nota_Fiscal!G126:G2626,Tabela1[[#This Row],[Nome]]) -> 0 | C126: =SUMIFS(Saída!$F$4:$F$38,Saída!E$4:E$38,Tabela1[[#This Row],[Nome]]) -> 0
A127: =IFERROR(INDEX(Nota_Fiscal!$G$4:$G$2504,MATCH(0,COUNTIF($A$3:A126,Nota_Fiscal!$G$4:$G$2504),0)),"") ->  | B127: =SUMIFS(Nota_Fiscal!I127:I2627,Nota_Fiscal!G127:G2627,Tabela1[[#This Row],[Nome]]) -> 0 | C127: =SUMIFS(Saída!$F$4:$F$38,Saída!E$4:E$38,Tabela1[[#This Row],[Nome]]) -> 0
A128: =IFERROR(INDEX(Nota_Fiscal!$G$4:$G$2504,MATCH(0,COUNTIF($A$3:A127,Nota_Fiscal!$G$4:$G$2504),0)),"") ->  | B128: =SUMIFS(Nota_Fiscal!I128:I2628,Nota_Fiscal!G128:G2628,Tabela1[[#This Row],[Nome]]) -> 0 | C128: =SUMIFS(Saída!$F$4:$F$38,Saída!E$4:E$38,Tabela1[[#This Row],[Nome]]) -> 0
A129: =IFERROR(INDEX(Nota_Fiscal!$G$4:$G$2504,MATCH(0,COUNTIF($A$3:A128,Nota_Fiscal!$G$4:$G$2504),0)),"") ->  | B129: =SUMIFS(Nota_Fiscal!I129:I2629,Nota_Fiscal!G129:G2629,Tabela1[[#This Row],[Nome]]) -> 0 | C129: =SUMIFS(Saída!$F$4:$F$38,Saída!E$4:E$38,Tabela1[[#This Row],[Nome]]) -> 0
A130: =IFERROR(INDEX(Nota_Fiscal!$G$4:$G$2504,MATCH(0,COUNTIF($A$3:A129,Nota_Fiscal!$G$4:$G$2504),0)),"") ->  | B130: =SUMIFS(Nota_Fiscal!I130:I2630,Nota_Fiscal!G130:G2630,Tabela1[[#This Row],[Nome]]) -> 0 | C130: =SUMIFS(Saída!$F$4:$F$38,Saída!E$4:E$38,Tabela1[[#This Row],[Nome]]) -> 0
A131: =IFERROR(INDEX(Nota_Fiscal!$G$4:$G$2504,MATCH(0,COUNTIF($A$3:A130,Nota_Fiscal!$G$4:$G$2504),0)),"") ->  | B131: =SUMIFS(Nota_Fiscal!I131:I2631,Nota_Fiscal!G131:G2631,Tabela1[[#This Row],[Nome]]) -> 0 | C131: =SUMIFS(Saída!$F$4:$F$38,Saída!E$4:E$38,Tabela1[[#This Row],[Nome]]) -> 0
A132: =IFERROR(INDEX(Nota_Fiscal!$G$4:$G$2504,MATCH(0,COUNTIF($A$3:A131,Nota_Fiscal!$G$4:$G$2504),0)),"") ->  | B132: =SUMIFS(Nota_Fiscal!I132:I2632,Nota_Fiscal!G132:G2632,Tabela1[[#This Row],[Nome]]) -> 0 | C132: =SUMIFS(Saída!$F$4:$F$38,Saída!E$4:E$38,Tabela1[[#This Row],[Nome]]) -> 0
A133: =IFERROR(INDEX(Nota_Fiscal!$G$4:$G$2504,MATCH(0,COUNTIF($A$3:A132,Nota_Fiscal!$G$4:$G$2504),0)),"") ->  | B133: =SUMIFS(Nota_Fiscal!I133:I2633,Nota_Fiscal!G133:G2633,Tabela1[[#This Row],[Nome]]) -> 0 | C133: =SUMIFS(Saída!$F$4:$F$38,Saída!E$4:E$38,Tabela1[[#This Row],[Nome]]) -> 0
A134: =IFERROR(INDEX(Nota_Fiscal!$G$4:$G$2504,MATCH(0,COUNTIF($A$3:A133,Nota_Fiscal!$G$4:$G$2504),0)),"") ->  | B134: =SUMIFS(Nota_Fiscal!I134:I2634,Nota_Fiscal!G134:G2634,Tabela1[[#This Row],[Nome]]) -> 0 | C134: =SUMIFS(Saída!$F$4:$F$38,Saída!E$4:E$38,Tabela1[[#This Row],[Nome]]) -> 0

Sheet Consulta_Estoque (hidden)
C2: CONSULTA DO ESTOQUE
C4: INSUMO | D4: QUANTIDADE EM ESTOQUE | E4: QUANTIDADE RETIRADA | F4: SALDO NO ESTOQUE
C5: Defensivo Granulado | D5: =(SUMIF(Nota_Fiscal!E4:E994,Consulta_Estoque!C5,Nota_Fiscal!I4:I994))+(SUMIF(Insumos!A4:A8,Consulta_Estoque!C5,Insumos!C4:C997)) -> 2000 | E5: =SUMIF(Saída!A:A,Consulta_Estoque!C5,Saída!F:F) -> 575 | F5: =IF(D5-E5>=0,D5-E5,D5-E5&" Produto em Falta") -> 1425
D36: =IFERROR(VLOOKUP(C36,Nota_Fiscal!E28:I29,2,0),"") -> 
D37: =IFERROR(VLOOKUP(C37,Nota_Fiscal!E29:I30,2,0),"") -> 
D38: =IFERROR(VLOOKUP(C38,Nota_Fiscal!E30:I31,2,0),"") -> 
D39: =IFERROR(VLOOKUP(C39,Nota_Fiscal!E31:I32,2,0),"") -> 
D40: =IFERROR(VLOOKUP(C40,Nota_Fiscal!E32:I33,2,0),"") -> 
D41: =IFERROR(VLOOKUP(C41,Nota_Fiscal!E33:I34,2,0),"") -> 
D42: =IFERROR(VLOOKUP(C42,Nota_Fiscal!E34:I35,2,0),"") -> 
D43: =IFERROR(VLOOKUP(C43,Nota_Fiscal!E35:I36,2,0),"") -> 
D44: =IFERROR(VLOOKUP(C44,Nota_Fiscal!E36:I37,2,0),"") -> 
D45: =IFERROR(VLOOKUP(C45,Nota_Fiscal!E37:I38,2,0),"") -> 
D46: =IFERROR(VLOOKUP(C46,Nota_Fiscal!E38:I39,2,0),"") -> 
D47: =IFERROR(VLOOKUP(C47,Nota_Fiscal!E39:I40,2,0),"") -> 
D48: =IFERROR(VLOOKUP(C48,Nota_Fiscal!E40:I41,2,0),"") -> 
D49: =IFERROR(VLOOKUP(C49,Nota_Fiscal!E41:I42,2,0),"") -> 
D50: =IFERROR(VLOOKUP(C50,Nota_Fiscal!E42:I43,2,0),"") -> 
D51: =IFERROR(VLOOKUP(C51,Nota_Fiscal!E43:I44,2,0),"") -> 
D52: =IFERROR(VLOOKUP(C52,Nota_Fiscal!E44:I45,2,0),"") -> 
D53: =IFERROR(VLOOKUP(C53,Nota_Fiscal!E45:I46,2,0),"") -> 
D54: =IFERROR(VLOOKUP(C54,Nota_Fiscal!E46:I47,2,0),"") -> 
D55: =IFERROR(VLOOKUP(C55,Nota_Fiscal!E47:I48,2,0),"") -> 
D56: =IFERROR(VLOOKUP(C56,Nota_Fiscal!E48:I49,2,0),"") -> 
D57: =IFERROR(VLOOKUP(C57,Nota_Fiscal!E49:I50,2,0),"") -> 
D58: =IFERROR(VLOOKUP(C58,Nota_Fiscal!E50:I51,2,0),"") -> 
D59: =IFERROR(VLOOKUP(C59,Nota_Fiscal!E51:I52,2,0),"") -> 
D60: =IFERROR(VLOOKUP(C60,Nota_Fiscal!E52:I53,2,0),"") -> 
D61: =IFERROR(VLOOKUP(C61,Nota_Fiscal!E53:I54,2,0),"") -> 
D62: =IFERROR(VLOOKUP(C62,Nota_Fiscal!E54:I55,2,0),"") -> 
D63: =IFERROR(VLOOKUP(C63,Nota_Fiscal!E55:I56,2,0),"") -> 
D64: =IFERROR(VLOOKUP(C64,Nota_Fiscal!E56:I57,2,0),"") -> 
D65: =IFERROR(VLOOKUP(C65,Nota_Fiscal!E57:I58,2,0),"") -> 
D66: =IFERROR(VLOOKUP(C66,Nota_Fiscal!E58:I59,2,0),"") -> 
D67: =IFERROR(VLOOKUP(C67,Nota_Fiscal!E59:I60,2,0),"") -> 
D68: =IFERROR(VLOOKUP(C68,Nota_Fiscal!E60:I61,2,0),"") -> 
D69: =IFERROR(VLOOKUP(C69,Nota_Fiscal!E61:I62,2,0),"") -> 
D70: =IFERROR(VLOOKUP(C70,Nota_Fiscal!E62:I63,2,0),"") -> 
D71: =IFERROR(VLOOKUP(C71,Nota_Fiscal!E63:I64,2,0),"") -> 
D72: =IFERROR(VLOOKUP(C72,Nota_Fiscal!E64:I65,2,0),"") -> 
D73: =IFERROR(VLOOKUP(C73,Nota_Fiscal!E65:I66,2,0),"") -> 
D74: =IFERROR(VLOOKUP(C74,Nota_Fiscal!E66:I67,2,0),"") -> 
D75: =IFERROR(VLOOKUP(C75,Nota_Fiscal!E67:I68,2,0),"") -> 
D76: =IFERROR(VLOOKUP(C76,Nota_Fiscal!E68:I69,2,0),"") -> 
D77: =IFERROR(VLOOKUP(C77,Nota_Fiscal!E69:I70,2,0),"") -> 
D78: =IFERROR(VLOOKUP(C78,Nota_Fiscal!E70:I71,2,0),"") -> 
D79: =IFERROR(VLOOKUP(C79,Nota_Fiscal!E71:I72,2,0),"") -> 
D80: =IFERROR(VLOOKUP(C80,Nota_Fiscal!E72:I73,2,0),"") -> 
D81: =IFERROR(VLOOKUP(C81,Nota_Fiscal!E73:I74,2,0),"") -> 
D82: =IFERROR(VLOOKUP(C82,Nota_Fiscal!E74:I75,2,0),"") -> 
D83: =IFERROR(VLOOKUP(C83,Nota_Fiscal!E75:I76,2,0),"") -> 
D84: =IFERROR(VLOOKUP(C84,Nota_Fiscal!E76:I77,2,0),"") -> 
D85: =IFERROR(VLOOKUP(C85,Nota_Fiscal!E77:I78,2,0),"") -> 
D86: =IFERROR(VLOOKUP(C86,Nota_Fiscal!E78:I79,2,0),"") -> 
D87: =IFERROR(VLOOKUP(C87,Nota_Fiscal!E79:I80,2,0),"") -> 
D88: =IFERROR(VLOOKUP(C88,Nota_Fiscal!E80:I81,2,0),"") -> 
D89: =IFERROR(VLOOKUP(C89,Nota_Fiscal!E81:I82,2,0),"") -> 
D90: =IFERROR(VLOOKUP(C90,Nota_Fiscal!E82:I83,2,0),"") -> 
D91: =IFERROR(VLOOKUP(C91,Nota_Fiscal!E83:I84,2,0),"") -> 
D92: =IFERROR(VLOOKUP(C92,Nota_Fiscal!E84:I85,2,0),"") -> 
D93: =IFERROR(VLOOKUP(C93,Nota_Fiscal!E85:I86,2,0),"") -> 
D94: =IFERROR(VLOOKUP(C94,Nota_Fiscal!E86:I87,2,0),"") -> 
D95: =IFERROR(VLOOKUP(C95,Nota_Fiscal!E87:I88,2,0),"") -> 
D96: =IFERROR(VLOOKUP(C96,Nota_Fiscal!E88:I89,2,0),"") -> 
D97: =IFERROR(VLOOKUP(C97,Nota_Fiscal!E89:I90,2,0),"") -> 
D98: =IFERROR(VLOOKUP(C98,Nota_Fiscal!E90:I91,2,0),"") -> 
D99: =IFERROR(VLOOKUP(C99,Nota_Fiscal!E91:I92,2,0),"") -> 
D100: =IFERROR(VLOOKUP(C100,Nota_Fiscal!E92:I93,2,0),"") -> 
D101: =IFERROR(VLOOKUP(C101,Nota_Fiscal!E93:I94,2,0),"") -> 
D102: =IFERROR(VLOOKUP(C102,Nota_Fiscal!E94:I95,2,0),"") -> 
D103: =IFERROR(VLOOKUP(C103,Nota_Fiscal!E95:I96,2,0),"") -> 
D104: =IFERROR(VLOOKUP(C104,Nota_Fiscal!E96:I97,2,0),"") -> 
D105: =IFERROR(VLOOKUP(C105,Nota_Fiscal!E97:I98,2,0),"") -> 
D106: =IFERROR(VLOOKUP(C106,Nota_Fiscal!E98:I99,2,0),"") -> 
D107: =IFERROR(VLOOKUP(C107,Nota_Fiscal!E99:I100,2,0),"") -> 
D108: =IFERROR(VLOOKUP(C108,Nota_Fiscal!E100:I101,2,0),"") -> 
D109: =IFERROR(VLOOKUP(C109,Nota_Fiscal!E101:I102,2,0),"") -> 
D110: =IFERROR(VLOOKUP(C110,Nota_Fiscal!E102:I103,2,0),"") -> 
D111: =IFERROR(VLOOKUP(C111,Nota_Fiscal!E103:I104,2,0),"") -> 
D112: =IFERROR(VLOOKUP(C112,Nota_Fiscal!E104:I105,2,0),"") -> 
D113: =IFERROR(VLOOKUP(C113,Nota_Fiscal!E105:I106,2,0),"") -> 
D114: =IFERROR(VLOOKUP(C114,Nota_Fiscal!E106:I107,2,0),"") -> 
D115: =IFERROR(VLOOKUP(C115,Nota_Fiscal!E107:I108,2,0),"") -> 
D116: =IFERROR(VLOOKUP(C116,Nota_Fiscal!E108:I109,2,0),"") -> 
D117: =IFERROR(VLOOKUP(C117,Nota_Fiscal!E109:I110,2,0),"") -> 
D118: =IFERROR(VLOOKUP(C118,Nota_Fiscal!E110:I111,2,0),"") -> 
D119: =IFERROR(VLOOKUP(C119,Nota_Fiscal!E111:I112,2,0),"") -> 
D120: =IFERROR(VLOOKUP(C120,Nota_Fiscal!E112:I113,2,0),"") -> 
D121: =IFERROR(VLOOKUP(C121,Nota_Fiscal!E113:I114,2,0),"") -> 
D122: =IFERROR(VLOOKUP(C122,Nota_Fiscal!E114:I115,2,0),"") -> 
D123: =IFERROR(VLOOKUP(C123,Nota_Fiscal!E115:I116,2,0),"") -> 
D124: =IFERROR(VLOOKUP(C124,Nota_Fiscal!E116:I117,2,0),"") -> 
D125: =IFERROR(VLOOKUP(C125,Nota_Fiscal!E117:I118,2,0),"") -> 
D126: =IFERROR(VLOOKUP(C126,Nota_Fiscal!E118:I119,2,0),"") -> 
D127: =IFERROR(VLOOKUP(C127,Nota_Fiscal!E119:I120,2,0),"") -> 
D128: =IFERROR(VLOOKUP(C128,Nota_Fiscal!E120:I121,2,0),"") -> 
D129: =IFERROR(VLOOKUP(C129,Nota_Fiscal!E121:I122,2,0),"") -> 
D130: =IFERROR(VLOOKUP(C130,Nota_Fiscal!E122:I123,2,0),"") -> 
D131: =IFERROR(VLOOKUP(C131,Nota_Fiscal!E123:I124,2,0),"") -> 
D132: =IFERROR(VLOOKUP(C132,Nota_Fiscal!E124:I125,2,0),"") -> 
D133: =IFERROR(VLOOKUP(C133,Nota_Fiscal!E125:I126,2,0),"") -> 
D134: =IFERROR(VLOOKUP(C134,Nota_Fiscal!E126:I127,2,0),"") -> 
D135: =IFERROR(VLOOKUP(C135,Nota_Fiscal!E127:I128,2,0),"") -> 
D136: =IFERROR(VLOOKUP(C136,Nota_Fiscal!E128:I129,2,0),"") -> 
D137: =IFERROR(VLOOKUP(C137,Nota_Fiscal!E129:I130,2,0),"") -> 
D138: =IFERROR(VLOOKUP(C138,Nota_Fiscal!E130:I131,2,0),"") -> 
D139: =IFERROR(VLOOKUP(C139,Nota_Fiscal!E131:I132,2,0),"") -> 
D140: =IFERROR(VLOOKUP(C140,Nota_Fiscal!E132:I133,2,0),"") -> 
D141: =IFERROR(VLOOKUP(C141,Nota_Fiscal!E133:I134,2,0),"") -> 
D142: =IFERROR(VLOOKUP(C142,Nota_Fiscal!E134:I135,2,0),"") -> 
D143: =IFERROR(VLOOKUP(C143,Nota_Fiscal!E135:I136,2,0),"") -> 
D144: =IFERROR(VLOOKUP(C144,Nota_Fiscal!E136:I137,2,0),"") -> 
D145: =IFERROR(VLOOKUP(C145,Nota_Fiscal!E137:I138,2,0),"") -> 
D146: =IFERROR(VLOOKUP(C146,Nota_Fiscal!E138:I139,2,0),"") -> 
D147: =IFERROR(VLOOKUP(C147,Nota_Fiscal!E139:I140,2,0),"") -> 
D148: =IFERROR(VLOOKUP(C148,Nota_Fiscal!E140:I141,2,0),"") -> 
D149: =IFERROR(VLOOKUP(C149,Nota_Fiscal!E141:I142,2,0),"") -> 
D150: =IFERROR(VLOOKUP(C150,Nota_Fiscal!E142:I143,2,0),"") -> 
D151: =IFERROR(VLOOKUP(C151,Nota_Fiscal!E143:I144,2,0),"") -> 
D152: =IFERROR(VLOOKUP(C152,Nota_Fiscal!E144:I145,2,0),"") -> 
D153: =IFERROR(VLOOKUP(C153,Nota_Fiscal!E145:I146,2,0),"") -> 
D154: =IFERROR(VLOOKUP(C154,Nota_Fiscal!E146:I147,2,0),"") -> 
D155: =IFERROR(VLOOKUP(C155,Nota_Fiscal!E147:I148,2,0),"") -> 
D156: =IFERROR(VLOOKUP(C156,Nota_Fiscal!E148:I149,2,0),"") -> 
D157: =IFERROR(VLOOKUP(C157,Nota_Fiscal!E149:I150,2,0),"") -> 
D158: =IFERROR(VLOOKUP(C158,Nota_Fiscal!E150:I151,2,0),"") -> 
D159: =IFERROR(VLOOKUP(C159,Nota_Fiscal!E151:I152,2,0),"") -> 
D160: =IFERROR(VLOOKUP(C160,Nota_Fiscal!E152:I153,2,0),"") -> 
D161: =IFERROR(VLOOKUP(C161,Nota_Fiscal!E153:I154,2,0),"") -> 
D162: =IFERROR(VLOOKUP(C162,Nota_Fiscal!E154:I155,2,0),"") -> 
D163: =IFERROR(VLOOKUP(C163,Nota_Fiscal!E155:I156,2,0),"") -> 
D164: =IFERROR(VLOOKUP(C164,Nota_Fiscal!E156:I157,2,0),"") -> 
D165: =IFERROR(VLOOKUP(C165,Nota_Fiscal!E157:I158,2,0),"") -> 
D166: =IFERROR(VLOOKUP(C166,Nota_Fiscal!E158:I159,2,0),"") -> 
D167: =IFERROR(VLOOKUP(C167,Nota_Fiscal!E159:I160,2,0),"") -> 
D168: =IFERROR(VLOOKUP(C168,Nota_Fiscal!E160:I161,2,0),"") -> 
D169: =IFERROR(VLOOKUP(C169,Nota_Fiscal!E161:I162,2,0),"") -> 
D170: =IFERROR(VLOOKUP(C170,Nota_Fiscal!E162:I163,2,0),"") -> 
D171: =IFERROR(VLOOKUP(C171,Nota_Fiscal!E163:I164,2,0),"") -> 
D172: =IFERROR(VLOOKUP(C172,Nota_Fiscal!E164:I165,2,0),"") -> 
D173: =IFERROR(VLOOKUP(C173,Nota_Fiscal!E165:I166,2,0),"") -> 
D174: =IFERROR(VLOOKUP(C174,Nota_Fiscal!E166:I167,2,0),"") -> 
D175: =IFERROR(VLOOKUP(C175,Nota_Fiscal!E167:I168,2,0),"") -> 
D176: =IFERROR(VLOOKUP(C176,Nota_Fiscal!E168:I169,2,0),"") -> 
D177: =IFERROR(VLOOKUP(C177,Nota_Fiscal!E169:I170,2,0),"") -> 
D178: =IFERROR(VLOOKUP(C178,Nota_Fiscal!E170:I171,2,0),"") -> 
D179: =IFERROR(VLOOKUP(C179,Nota_Fiscal!E171:I172,2,0),"") -> 
D180: =IFERROR(VLOOKUP(C180,Nota_Fiscal!E172:I173,2,0),"") -> 
D181: =IFERROR(VLOOKUP(C181,Nota_Fiscal!E173:I174,2,0),"") -> 
D182: =IFERROR(VLOOKUP(C182,Nota_Fiscal!E174:I175,2,0),"") -> 
D183: =IFERROR(VLOOKUP(C183,Nota_Fiscal!E175:I176,2,0),"") -> 
D184: =IFERROR(VLOOKUP(C184,Nota_Fiscal!E176:I177,2,0),"") -> 
D185: =IFERROR(VLOOKUP(C185,Nota_Fiscal!E177:I178,2,0),"") -> 
D186: =IFERROR(VLOOKUP(C186,Nota_Fiscal!E178:I179,2,0),"") -> 
D187: =IFERROR(VLOOKUP(C187,Nota_Fiscal!E179:I180,2,0),"") -> 
D188: =IFERROR(VLOOKUP(C188,Nota_Fiscal!E180:I181,2,0),"") -> 
D189: =IFERROR(VLOOKUP(C189,Nota_Fiscal!E181:I182,2,0),"") -> 
D190: =IFERROR(VLOOKUP(C190,Nota_Fiscal!E182:I183,2,0),"") -> 
D191: =IFERROR(VLOOKUP(C191,Nota_Fiscal!E183:I184,2,0),"") -> 
D192: =IFERROR(VLOOKUP(C192,Nota_Fiscal!E184:I185,2,0),"") -> 
D193: =IFERROR(VLOOKUP(C193,Nota_Fiscal!E185:I186,2,0),"") -> 
D194: =IFERROR(VLOOKUP(C194,Nota_Fiscal!E186:I187,2,0),"") -> 
D195: =IFERROR(VLOOKUP(C195,Nota_Fiscal!E187:I188,2,0),"") -> 
D196: =IFERROR(VLOOKUP(C196,Nota_Fiscal!E188:I189,2,0),"") -> 
D197: =IFERROR(VLOOKUP(C197,Nota_Fiscal!E189:I190,2,0),"") -> 
D198: =IFERROR(VLOOKUP(C198,Nota_Fiscal!E190:I191,2,0),"") -> 
D199: =IFERROR(VLOOKUP(C199,Nota_Fiscal!E191:I192,2,0),"") -> 
D200: =IFERROR(VLOOKUP(C200,Nota_Fiscal!E192:I193,2,0),"") -> 
D201: =IFERROR(VLOOKUP(C201,Nota_Fiscal!E193:I194,2,0),"") -> 
D202: =IFERROR(VLOOKUP(C202,Nota_Fiscal!E194:I195,2,0),"") -> 
D203: =IFERROR(VLOOKUP(C203,Nota_Fiscal!E195:I196,2,0),"") -> 
D204: =IFERROR(VLOOKUP(C204,Nota_Fiscal!E196:I197,2,0),"") -> 
D205: =IFERROR(VLOOKUP(C205,Nota_Fiscal!E197:I198,2,0),"") -> 
D206: =IFERROR(VLOOKUP(C206,Nota_Fiscal!E198:I199,2,0),"") -> 
D207: =IFERROR(VLOOKUP(C207,Nota_Fiscal!E199:I200,2,0),"") -> 
D208: =IFERROR(VLOOKUP(C208,Nota_Fiscal!E200:I201,2,0),"") -> 
D209: =IFERROR(VLOOKUP(C209,Nota_Fiscal!E201:I202,2,0),"") -> 
D210: =IFERROR(VLOOKUP(C210,Nota_Fiscal!E202:I203,2,0),"") -> 
D211: =IFERROR(VLOOKUP(C211,Nota_Fiscal!E203:I204,2,0),"") -> 
D212: =IFERROR(VLOOKUP(C212,Nota_Fiscal!E204:I205,2,0),"") -> 
D213: =IFERROR(VLOOKUP(C213,Nota_Fiscal!E205:I206,2,0),"") -> 
D214: =IFERROR(VLOOKUP(C214,Nota_Fiscal!E206:I207,2,0),"") -> 
D215: =IFERROR(VLOOKUP(C215,Nota_Fiscal!E207:I208,2,0),"") -> 
D216: =IFERROR(VLOOKUP(C216,Nota_Fiscal!E208:I209,2,0),"") -> 
D217: =IFERROR(VLOOKUP(C217,Nota_Fiscal!E209:I210,2,0),"") -> 
D218: =IFERROR(VLOOKUP(C218,Nota_Fiscal!E210:I211,2,0),"") -> 
D219: =IFERROR(VLOOKUP(C219,Nota_Fiscal!E211:I212,2,0),"") -> 
D220: =IFERROR(VLOOKUP(C220,Nota_Fiscal!E212:I213,2,0),"") -> 
D221: =IFERROR(VLOOKUP(C221,Nota_Fiscal!E213:I214,2,0),"") -> 
D222: =IFERROR(VLOOKUP(C222,Nota_Fiscal!E214:I215,2,0),"") -> 
D223: =IFERROR(VLOOKUP(C223,Nota_Fiscal!E215:I216,2,0),"") -> 
D224: =IFERROR(VLOOKUP(C224,Nota_Fiscal!E216:I217,2,0),"") -> 
D225: =IFERROR(VLOOKUP(C225,Nota_Fiscal!E217:I218,2,0),"") -> 
D226: =IFERROR(VLOOKUP(C226,Nota_Fiscal!E218:I219,2,0),"") -> 
D227: =IFERROR(VLOOKUP(C227,Nota_Fiscal!E219:I220,2,0),"") -> 
D228: =IFERROR(VLOOKUP(C228,Nota_Fiscal!E220:I221,2,0),"") -> 
D229: =IFERROR(VLOOKUP(C229,Nota_Fiscal!E221:I222,2,0),"") -> 
D230: =IFERROR(VLOOKUP(C230,Nota_Fiscal!E222:I223,2,0),"") -> 
D231: =IFERROR(VLOOKUP(C231,Nota_Fiscal!E223:I224,2,0),"") -> 
D232: =IFERROR(VLOOKUP(C232,Nota_Fiscal!E224:I225,2,0),"") -> 
... 494 more rows

Sheet Relatorio_Atividades
B2: RELATÓRIO DE ATIVIDADES E UTILIZAÇÃO DE INSUMOS
C4: Escolha a Atividade
C5: dessecação
B8: INSUMOS | C8: QUANTIDADE UTILIZADAS | D8: UNIDADE
B9: =IFERROR(INDEX(Saída!$A$4:$A$38,SMALL((Saída!$G$4:$G$38=$C$5)*ROW(Saída!$G$4:$G$38),SUMPRODUCT(N(((Saída!$G$4:$G$38=$C$5)*ROW(Saída!$G$4:$G$38))=0))+ROW(Saída!$G$4:$G$38)-3)-3),"") -> Defensivo Granulado | C9: =IFERROR(INDEX(Saída!$F$4:$F$38,SMALL((Saída!$G$4:$G$38=$C$5)*ROW(Saída!$G$4:$G$38),SUMPRODUCT(N(((Saída!$G$4:$G$38=$C$5)*ROW(Saída!$G$4:$G$38))=0))+ROW(Saída!$G$4:$G$38)-3)-3),"") -> 220 | D9: =IFERROR(VLOOKUP(B9,Insumos!$A$4:$B$8,2,FALSE),"") -> Kg
B10: Defensivo Galão | C10: 165 | D10: =IFERROR(VLOOKUP(B10,Insumos!$A$4:$B$8,2,FALSE),"") -> Lt
B11: Defensivo Galão | C11: 30 | D11: =IFERROR(VLOOKUP(B11,Insumos!$A$4:$B$8,2,FALSE),"") -> Lt
B12: Defensivo Galão | C12: 8 | D12: =IFERROR(VLOOKUP(B12,Insumos!$A$4:$B$8,2,FALSE),"") -> Lt
B13: Defensivo Granulado | C13: 120 | D13: =IFERROR(VLOOKUP(B13,Insumos!$A$4:$B$8,2,FALSE),"") -> Kg
B14: Defensivo Galão | C14: 90 | D14: =IFERROR(VLOOKUP(B14,Insumos!$A$4:$B$8,2,FALSE),"") -> Lt
B15: Defensivo Galão | C15: 4 | D15: =IFERROR(VLOOKUP(B15,Insumos!$A$4:$B$8,2,FALSE),"") -> Lt
B16: Defensivo Galão | C16: 20 | D16: =IFERROR(VLOOKUP(B16,Insumos!$A$4:$B$8,2,FALSE),"") -> Lt
B17: Defensivo Granulado | C17: 155 | D17: =IFERROR(VLOOKUP(B17,Insumos!$A$4:$B$8,2,FALSE),"") -> Kg
B18: Defensivo Granulado | C18: 40 | D18: =IFERROR(VLOOKUP(B18,Insumos!$A$4:$B$8,2,FALSE),"") -> Kg
B19: Defensivo Galão | C19: 15 | D19: =IFERROR(VLOOKUP(B19,Insumos!$A$4:$B$8,2,FALSE),"") -> Lt
B20: Defensivo Galão | C20: 7.5 | D20: =IFERROR(VLOOKUP(B20,Insumos!$A$4:$B$8,2,FALSE),"") -> Lt
B21: Defensivo Galão | C21: 1 | D21: =IFERROR(VLOOKUP(B21,Insumos!$A$4:$B$8,2,FALSE),"") -> Lt
B22: Defensivo Granulado | C22: 40 | D22: =IFERROR(VLOOKUP(B22,Insumos!$A$4:$B$8,2,FALSE),"") -> Kg
B23: Defensivo Galão | C23: 15 | D23: =IFERROR(VLOOKUP(B23,Insumos!$A$4:$B$8,2,FALSE),"") -> Lt
B24: Defensivo Galão | C24: 7.5 | D24: =IFERROR(VLOOKUP(B24,Insumos!$A$4:$B$8,2,FALSE),"") -> Lt
B25: Defensivo Galão | C25: 1 | D25: =IFERROR(VLOOKUP(B25,Insumos!$A$4:$B$8,2,FALSE),"") -> Lt
B26: Defensivo Galão | C26: 45 | D26: =IFERROR(VLOOKUP(B26,Insumos!$A$4:$B$8,2,FALSE),"") -> Lt
B27: Defensivo Galão | C27: 18 | D27: =IFERROR(VLOOKUP(B27,Insumos!$A$4:$B$8,2,FALSE),"") -> Lt
B28: Defensivo Galão | C28: 9 | D28: =IFERROR(VLOOKUP(B28,Insumos!$A$4:$B$8,2,FALSE),"") -> Lt
B29: Defensivo Galão | C29: 1 | D29: =IFERROR(VLOOKUP(B29,Insumos!$A$4:$B$8,2,FALSE),"") -> Lt
B30: Defensivo Galão | C30: 2 | D30: =IFERROR(VLOOKUP(B30,Insumos!$A$4:$B$8,2,FALSE),"") -> Lt
B31: Defensivo Galão | C31: 90 | D31: =IFERROR(VLOOKUP(B31,Insumos!$A$4:$B$8,2,FALSE),"") -> Lt
B32: Defensivo Galão | C32: 36 | D32: =IFERROR(VLOOKUP(B32,Insumos!$A$4:$B$8,2,FALSE),"") -> Lt
B33: Defensivo Galão | C33: 18 | D33: =IFERROR(VLOOKUP(B33,Insumos!$A$4:$B$8,2,FALSE),"") -> Lt
B34: Defensivo Galão | C34: 2 | D34: =IFERROR(VLOOKUP(B34,Insumos!$A$4:$B$8,2,FALSE),"") -> Lt
B35: Defensivo Galão | C35: 2 | D35: =IFERROR(VLOOKUP(B35,Insumos!$A$4:$B$8,2,FALSE),"") -> Lt
B36: Defensivo Galão | C36: 65 | D36: =IFERROR(VLOOKUP(B36,Insumos!$A$4:$B$8,2,FALSE),"") -> Lt
B37: Defensivo Galão | C37: 27 | D37: =IFERROR(VLOOKUP(B37,Insumos!$A$4:$B$8,2,FALSE),"") -> Lt
B38: Defensivo Galão | C38: 13.5 | D38: =IFERROR(VLOOKUP(B38,Insumos!$A$4:$B$8,2,FALSE),"") -> Lt
B39: Defensivo Galão | C39: 1.5 | D39: =IFERROR(VLOOKUP(B39,Insumos!$A$4:$B$8,2,FALSE),"") -> Lt
D40: =IFERROR(VLOOKUP(B40,Insumos!$A$4:$B$8,2,FALSE),"") -> 
D41: =IFERROR(VLOOKUP(B41,Insumos!$A$4:$B$8,2,FALSE),"") -> 
D42: =IFERROR(VLOOKUP(B42,Insumos!$A$4:$B$8,2,FALSE),"") -> 
D43: =IFERROR(VLOOKUP(B43,Insumos!$A$4:$B$8,2,FALSE),"") -> 
D44: =IFERROR(VLOOKUP(B44,Insumos!$A$4:$B$8,2,FALSE),"") -> 
D45: =IFERROR(VLOOKUP(B45,Insumos!$A$4:$B$8,2,FALSE),"") -> 
D46: =IFERROR(VLOOKUP(B46,Insumos!$A$4:$B$8,2,FALSE),"") -> 
D47: =IFERROR(VLOOKUP(B47,Insumos!$A$4:$B$8,2,FALSE),"") -> 
D48: =IFERROR(VLOOKUP(B48,Insumos!$A$4:$B$8,2,FALSE),"") -> 
D49: =IFERROR(VLOOKUP(B49,Insumos!$A$4:$B$8,2,FALSE),"") -> 
D50: =IFERROR(VLOOKUP(B50,Insumos!$A$4:$B$8,2,FALSE),"") -> 
D51: =IFERROR(VLOOKUP(B51,Insumos!$A$4:$B$8,2,FALSE),"") -> 
D52: =IFERROR(VLOOKUP(B52,Insumos!$A$4:$B$8,2,FALSE),"") -> 
D53: =IFERROR(VLOOKUP(B53,Insumos!$A$4:$B$8,2,FALSE),"") -> 
D54: =IFERROR(VLOOKUP(B54,Insumos!$A$4:$B$8,2,FALSE),"") -> 
D55: =IFERROR(VLOOKUP(B55,Insumos!$A$4:$B$8,2,FALSE),"") -> 
D56: =IFERROR(VLOOKUP(B56,Insumos!$A$4:$B$8,2,FALSE),"") -> 
D57: =IFERROR(VLOOKUP(B57,Insumos!$A$4:$B$8,2,FALSE),"") -> 
D58: =IFERROR(VLOOKUP(B58,Insumos!$A$4:$B$8,2,FALSE),"") -> 
D59: =IFERROR(VLOOKUP(B59,Insumos!$A$4:$B$8,2,FALSE),"") -> 
D60: =IFERROR(VLOOKUP(B60,Insumos!$A$4:$B$8,2,FALSE),"") -> 
D61: =IFERROR(VLOOKUP(B61,Insumos!$A$4:$B$8,2,FALSE),"") -> 
D62: =IFERROR(VLOOKUP(B62,Insumos!$A$4:$B$8,2,FALSE),"") -> 
D63: =IFERROR(VLOOKUP(B63,Insumos!$A$4:$B$8,2,FALSE),"") -> 
D64: =IFERROR(VLOOKUP(B64,Insumos!$A$4:$B$8,2,FALSE),"") -> 
D65: =IFERROR(VLOOKUP(B65,Insumos!$A$4:$B$8,2,FALSE),"") -> 
D66: =IFERROR(VLOOKUP(B66,Insumos!$A$4:$B$8,2,FALSE),"") -> 
D67: =IFERROR(VLOOKUP(B67,Insumos!$A$4:$B$8,2,FALSE),"") -> 
D68: =IFERROR(VLOOKUP(B68,Insumos!$A$4:$B$8,2,FALSE),"") -> 
D69: =IFERROR(VLOOKUP(B69,Insumos!$A$4:$B$8,2,FALSE),"") -> 
D70: =IFERROR(VLOOKUP(B70,Insumos!$A$4:$B$8,2,FALSE),"") -> 
D71: =IFERROR(VLOOKUP(B71,Insumos!$A$4:$B$8,2,FALSE),"") -> 
D72: =IFERROR(VLOOKUP(B72,Insumos!$A$4:$B$8,2,FALSE),"") -> 
D73: =IFERROR(VLOOKUP(B73,Insumos!$A$4:$B$8,2,FALSE),"") -> 
D74: =IFERROR(VLOOKUP(B74,Insumos!$A$4:$B$8,2,FALSE),"") -> 
D75: =IFERROR(VLOOKUP(B75,Insumos!$A$4:$B$8,2,FALSE),"") -> 
D76: =IFERROR(VLOOKUP(B76,Insumos!$A$4:$B$8,2,FALSE),"") -> 
D77: =IFERROR(VLOOKUP(B77,Insumos!$A$4:$B$8,2,FALSE),"") -> 
D78: =IFERROR(VLOOKUP(B78,Insumos!$A$4:$B$8,2,FALSE),"") -> 
D79: =IFERROR(VLOOKUP(B79,Insumos!$A$4:$B$8,2,FALSE),"") -> 
D80: =IFERROR(VLOOKUP(B80,Insumos!$A$4:$B$8,2,FALSE),"") -> 
D81: =IFERROR(VLOOKUP(B81,Insumos!$A$4:$B$8,2,FALSE),"") -> 
D82: =IFERROR(VLOOKUP(B82,Insumos!$A$4:$B$8,2,FALSE),"") -> 
D83: =IFERROR(VLOOKUP(B83,Insumos!$A$4:$B$8,2,FALSE),"") -> 
D84: =IFERROR(VLOOKUP(B84,Insumos!$A$4:$B$8,2,FALSE),"") -> 
D85: =IFERROR(VLOOKUP(B85,Insumos!$A$4:$B$8,2,FALSE),"") -> 
D86: =IFERROR(VLOOKUP(B86,Insumos!$A$4:$B$8,2,FALSE),"") -> 
D87: =IFERROR(VLOOKUP(B87,Insumos!$A$4:$B$8,2,FALSE),"") -> 
D88: =IFERROR(VLOOKUP(B88,Insumos!$A$4:$B$8,2,FALSE),"") -> 
D89: =IFERROR(VLOOKUP(B89,Insumos!$A$4:$B$8,2,FALSE),"") -> 
D90: =IFERROR(VLOOKUP(B90,Insumos!$A$4:$B$8,2,FALSE),"") -> 
D91: =IFERROR(VLOOKUP(B91,Insumos!$A$4:$B$8,2,FALSE),"") -> 
D92: =IFERROR(VLOOKUP(B92,Insumos!$A$4:$B$8,2,FALSE),"") -> 
D93: =IFERROR(VLOOKUP(B93,Insumos!$A$4:$B$8,2,FALSE),"") -> 
D94: =IFERROR(VLOOKUP(B94,Insumos!$A$4:$B$8,2,FALSE),"") -> 
D95: =IFERROR(VLOOKUP(B95,Insumos!$A$4:$B$8,2,FALSE),"") -> 
D96: =IFERROR(VLOOKUP(B96,Insumos!$A$4:$B$8,2,FALSE),"") -> 
D97: =IFERROR(VLOOKUP(B97,Insumos!$A$4:$B$8,2,FALSE),"") -> 
D98: =IFERROR(VLOOKUP(B98,Insumos!$A$4:$B$8,2,FALSE),"") -> 
D99: =IFERROR(VLOOKUP(B99,Insumos!$A$4:$B$8,2,FALSE),"") -> 
D100: =IFERROR(VLOOKUP(B100,Insumos!$A$4:$B$8,2,FALSE),"") -> 
D101: =IFERROR(VLOOKUP(B101,Insumos!$A$4:$B$8,2,FALSE),"") -> 
D102: =IFERROR(VLOOKUP(B102,Insumos!$A$4:$B$8,2,FALSE),"") -> 
D103: =IFERROR(VLOOKUP(B103,Insumos!$A$4:$B$8,2,FALSE),"") -> 
D104: =IFERROR(VLOOKUP(B104,Insumos!$A$4:$B$8,2,FALSE),"") -> 
D105: =IFERROR(VLOOKUP(B105,Insumos!$A$4:$B$8,2,FALSE),"") -> 
D106: =IFERROR(VLOOKUP(B106,Insumos!$A$4:$B$8,2,FALSE),"") -> 
D107: =IFERROR(VLOOKUP(B107,Insumos!$A$4:$B$8,2,FALSE),"") -> 
D108: =IFERROR(VLOOKUP(B108,Insumos!$A$4:$B$8,2,FALSE),"") -> 
D109: =IFERROR(VLOOKUP(B109,Insumos!$A$4:$B$8,2,FALSE),"") -> 
D110: =IFERROR(VLOOKUP(B110,Insumos!$A$4:$B$8,2,FALSE),"") -> 
D111: =IFERROR(VLOOKUP(B111,Insumos!$A$4:$B$8,2,FALSE),"") -> 
D112: =IFERROR(VLOOKUP(B112,Insumos!$A$4:$B$8,2,FALSE),"") -> 
D113: =IFERROR(VLOOKUP(B113,Insumos!$A$4:$B$8,2,FALSE),"") -> 
D114: =IFERROR(VLOOKUP(B114,Insumos!$A$4:$B$8,2,FALSE),"") -> 
D115: =IFERROR(VLOOKUP(B115,Insumos!$A$4:$B$8,2,FALSE),"") -> 
D116: =IFERROR(VLOOKUP(B116,Insumos!$A$4:$B$8,2,FALSE),"") -> 
D117: =IFERROR(VLOOKUP(B117,Insumos!$A$4:$B$8,2,FALSE),"") -> 
D118: =IFERROR(VLOOKUP(B118,Insumos!$A$4:$B$8,2,FALSE),"") -> 
D119: =IFERROR(VLOOKUP(B119,Insumos!$A$4:$B$8,2,FALSE),"") -> 
D120: =IFERROR(VLOOKUP(B120,Insumos!$A$4:$B$8,2,FALSE),"") -> 
D121: =IFERROR(VLOOKUP(B121,Insumos!$A$4:$B$8,2,FALSE),"") -> 
D122: =IFERROR(VLOOKUP(B122,Insumos!$A$4:$B$8,2,FALSE),"") -> 
D123: =IFERROR(VLOOKUP(B123,Insumos!$A$4:$B$8,2,FALSE),"") -> 
D124: =IFERROR(VLOOKUP(B124,Insumos!$A$4:$B$8,2,FALSE),"") -> 
D125: =IFERROR(VLOOKUP(B125,Insumos!$A$4:$B$8,2,FALSE),"") -> 
D126: =IFERROR(VLOOKUP(B126,Insumos!$A$4:$B$8,2,FALSE),"") -> 
D127: =IFERROR(VLOOKUP(B127,Insumos!$A$4:$B$8,2,FALSE),"") -> 
D128: =IFERROR(VLOOKUP(B128,Insumos!$A$4:$B$8,2,FALSE),"") -> 
D129: =IFERROR(VLOOKUP(B129,Insumos!$A$4:$B$8,2,FALSE),"") -> 
D130: =IFERROR(VLOOKUP(B130,Insumos!$A$4:$B$8,2,FALSE),"") -> 
D131: =IFERROR(VLOOKUP(B131,Insumos!$A$4:$B$8,2,FALSE),"") -> 
D132: =IFERROR(VLOOKUP(B132,Insumos!$A$4:$B$8,2,FALSE),"") -> 
D133: =IFERROR(VLOOKUP(B133,Insumos!$A$4:$B$8,2,FALSE),"") -> 
D134: =IFERROR(VLOOKUP(B134,Insumos!$A$4:$B$8,2,FALSE),"") -> 
D135: =IFERROR(VLOOKUP(B135,Insumos!$A$4:$B$8,2,FALSE),"") -> 
D136: =IFERROR(VLOOKUP(B136,Insumos!$A$4:$B$8,2,FALSE),"") -> 
D137: =IFERROR(VLOOKUP(B137,Insumos!$A$4:$B$8,2,FALSE),"") -> 
D138: =IFERROR(VLOOKUP(B138,Insumos!$A$4:$B$8,2,FALSE),"") -> 
D139: =IFERROR(VLOOKUP(B139,Insumos!$A$4:$B$8,2,FALSE),"") -> 
D140: =IFERROR(VLOOKUP(B140,Insumos!$A$4:$B$8,2,FALSE),"") -> 
D141: =IFERROR(VLOOKUP(B141,Insumos!$A$4:$B$8,2,FALSE),"") -> 
D142: =IFERROR(VLOOKUP(B142,Insumos!$A$4:$B$8,2,FALSE),"") -> 
D143: =IFERROR(VLOOKUP(B143,Insumos!$A$4:$B$8,2,FALSE),"") -> 
D144: =IFERROR(VLOOKUP(B144,Insumos!$A$4:$B$8,2,FALSE),"") -> 
D145: =IFERROR(VLOOKUP(B145,Insumos!$A$4:$B$8,2,FALSE),"") -> 
D146: =IFERROR(VLOOKUP(B146,Insumos!$A$4:$B$8,2,FALSE),"") -> 
D147: =IFERROR(VLOOKUP(B147,Insumos!$A$4:$B$8,2,FALSE),"") -> 
D148: =IFERROR(VLOOKUP(B148,Insumos!$A$4:$B$8,2,FALSE),"") -> 
D149: =IFERROR(VLOOKUP(B149,Insumos!$A$4:$B$8,2,FALSE),"") -> 
D150: =IFERROR(VLOOKUP(B150,Insumos!$A$4:$B$8,2,FALSE),"") -> 
D151: =IFERROR(VLOOKUP(B151,Insumos!$A$4:$B$8,2,FALSE),"") -> 
D152: =IFERROR(VLOOKUP(B152,Insumos!$A$4:$B$8,2,FALSE),"") -> 
D153: =IFERROR(VLOOKUP(B153,Insumos!$A$4:$B$8,2,FALSE),"") -> 
D154: =IFERROR(VLOOKUP(B154,Insumos!$A$4:$B$8,2,FALSE),"") -> 
D155: =IFERROR(VLOOKUP(B155,Insumos!$A$4:$B$8,2,FALSE),"") -> 
D156: =IFERROR(VLOOKUP(B156,Insumos!$A$4:$B$8,2,FALSE),"") -> 
D157: =IFERROR(VLOOKUP(B157,Insumos!$A$4:$B$8,2,FALSE),"") -> 
D158: =IFERROR(VLOOKUP(B158,Insumos!$A$4:$B$8,2,FALSE),"") -> 
D159: =IFERROR(VLOOKUP(B159,Insumos!$A$4:$B$8,2,FALSE),"") -> 
D160: =IFERROR(VLOOKUP(B160,Insumos!$A$4:$B$8,2,FALSE),"") -> 
D161: =IFERROR(VLOOKUP(B161,Insumos!$A$4:$B$8,2,FALSE),"") -> 
D162: =IFERROR(VLOOKUP(B162,Insumos!$A$4:$B$8,2,FALSE),"") -> 
D163: =IFERROR(VLOOKUP(B163,Insumos!$A$4:$B$8,2,FALSE),"") -> 
D164: =IFERROR(VLOOKUP(B164,Insumos!$A$4:$B$8,2,FALSE),"") -> 
D165: =IFERROR(VLOOKUP(B165,Insumos!$A$4:$B$8,2,FALSE),"") -> 
D166: =IFERROR(VLOOKUP(B166,Insumos!$A$4:$B$8,2,FALSE),"") -> 
D167: =IFERROR(VLOOKUP(B167,Insumos!$A$4:$B$8,2,FALSE),"") -> 
D168: =IFERROR(VLOOKUP(B168,Insumos!$A$4:$B$8,2,FALSE),"") -> 
D169: =IFERROR(VLOOKUP(B169,Insumos!$A$4:$B$8,2,FALSE),"") -> 
D170: =IFERROR(VLOOKUP(B170,Insumos!$A$4:$B$8,2,FALSE),"") -> 
D171: =IFERROR(VLOOKUP(B171,Insumos!$A$4:$B$8,2,FALSE),"") -> 
D172: =IFERROR(VLOOKUP(B172,Insumos!$A$4:$B$8,2,FALSE),"") -> 
D173: =IFERROR(VLOOKUP(B173,Insumos!$A$4:$B$8,2,FALSE),"") -> 
D174: =IFERROR(VLOOKUP(B174,Insumos!$A$4:$B$8,2,FALSE),"") -> 
D175: =IFERROR(VLOOKUP(B175,Insumos!$A$4:$B$8,2,FALSE),"") -> 
D176: =IFERROR(VLOOKUP(B176,Insumos!$A$4:$B$8,2,FALSE),"") -> 
D177: =IFERROR(VLOOKUP(B177,Insumos!$A$4:$B$8,2,FALSE),"") -> 
D178: =IFERROR(VLOOKUP(B178,Insumos!$A$4:$B$8,2,FALSE),"") -> 
D179: =IFERROR(VLOOKUP(B179,Insumos!$A$4:$B$8,2,FALSE),"") -> 
D180: =IFERROR(VLOOKUP(B180,Insumos!$A$4:$B$8,2,FALSE),"") -> 
D181: =IFERROR(VLOOKUP(B181,Insumos!$A$4:$B$8,2,FALSE),"") -> 
D182: =IFERROR(VLOOKUP(B182,Insumos!$A$4:$B$8,2,FALSE),"") -> 
D183: =IFERROR(VLOOKUP(B183,Insumos!$A$4:$B$8,2,FALSE),"") -> 
D184: =IFERROR(VLOOKUP(B184,Insumos!$A$4:$B$8,2,FALSE),"") -> 
D185: =IFERROR(VLOOKUP(B185,Insumos!$A$4:$B$8,2,FALSE),"") -> 
D186: =IFERROR(VLOOKUP(B186,Insumos!$A$4:$B$8,2,FALSE),"") -> 
D187: =IFERROR(VLOOKUP(B187,Insumos!$A$4:$B$8,2,FALSE),"") -> 
D188: =IFERROR(VLOOKUP(B188,Insumos!$A$4:$B$8,2,FALSE),"") -> 
D189: =IFERROR(VLOOKUP(B189,Insumos!$A$4:$B$8,2,FALSE),"") -> 
D190: =IFERROR(VLOOKUP(B190,Insumos!$A$4:$B$8,2,FALSE),"") -> 
D191: =IFERROR(VLOOKUP(B191,Insumos!$A$4:$B$8,2,FALSE),"") -> 
D192: =IFERROR(VLOOKUP(B192,Insumos!$A$4:$B$8,2,FALSE),"") -> 
D193: =IFERROR(VLOOKUP(B193,Insumos!$A$4:$B$8,2,FALSE),"") -> 
D194: =IFERROR(VLOOKUP(B194,Insumos!$A$4:$B$8,2,FALSE),"") -> 
D195: =IFERROR(VLOOKUP(B195,Insumos!$A$4:$B$8,2,FALSE),"") -> 
D196: =IFERROR(VLOOKUP(B196,Insumos!$A$4:$B$8,2,FALSE),"") -> 
D197: =IFERROR(VLOOKUP(B197,Insumos!$A$4:$B$8,2,FALSE),"") -> 
D198: =IFERROR(VLOOKUP(B198,Insumos!$A$4:$B$8,2,FALSE),"") -> 
D199: =IFERROR(VLOOKUP(B199,Insumos!$A$4:$B$8,2,FALSE),"") -> 
D200: =IFERROR(VLOOKUP(B200,Insumos!$A$4:$B$8,2,FALSE),"") -> 
D201: =IFERROR(VLOOKUP(B201,Insumos!$A$4:$B$8,2,FALSE),"") -> 
D202: =IFERROR(VLOOKUP(B202,Insumos!$A$4:$B$8,2,FALSE),"") -> 
D203: =IFERROR(VLOOKUP(B203,Insumos!$A$4:$B$8,2,FALSE),"") -> 
D204: =IFERROR(VLOOKUP(B204,Insumos!$A$4:$B$8,2,FALSE),"") -> 
... 796 more rows
